Cogmind - Beta 13 X2 @@@ ROGUE MODE // 2024.01.18 @ 00:45:41 Player: cptwinky Result: Establishing Free Derelict Territories! Performance ------------- Evolutions (9) 4500 Regions Visited (31) 6200 Robots Destroyed (399) 1995 Value Destroyed (18138) 18138 Prototype IDs (112) 2240 Alien Tech Used (2) 400 Bonus (37783) 37783 TOTAL SCORE: 71256 Bonus ------- High Alert Combat Kills 2619 Follower Combat Kills 4835 Awakened Behemoth Slayer 1000 Network Hubs Disabled 400 Met Imprinter 300 Met Zhirov 300 Met Warlord at Base 500 MAIN.C Attacked Warlord 500 Built Enhanced Grunts 300 A7 Reached Mainframe 300 Met R17 at Cetus 500 Met Warlord at Research 2000 Destroyed MAIN.C Guards 500 Met MAIN.C 5000 Hacked MAIN.C 300 Destroyed MAIN.C Shell 5000 Destroyed MAIN.C 10000 Met Warlord at Command 2000 Win 3000 Friendly Fire -1571 Cogmind --------- Core Integrity 1402/1600 Matter 196/300 Energy 690/690 System Corruption 7% Temperature Cool (0) Movement Walking (190) Ox1 Location Free Derelict Territories Parts ------- > --- POWER (3) -------- Light Quantum Reactor Reinforced Quantum Reactor Improved Quantum Reactor > --- PROPULSION (8) --- Myomer Leg Centrium Leg Centrium Leg Centrium Leg Centrium Leg Centrium Leg > --- UTILITY (11) ----- Huge Storage Unit Experimental Targeting Computer Advanced Melee Analysis Suite Experimental Core Analyzer Experimental Core Analyzer Improved Armor Integrity Analyzer Improved Utility Shielding SHELL Armor Graphene Brace > --- WEAPON (3) ------- Molecular Scythe Molecular Scythe Molecular Scythe > --- INVENTORY (25) --- Advanced Cooling System Experimental Energy Well (600) Experimental Matter Compressor (500) Enhanced Nova Cannon Potential Cannon Improved Potential Cannon Multirail Tiamat Missile Launcher Advanced Remote Datajack Kinetic Spear CR-A16's Behemoth Slayer Peak State ------------ > --- POWER ------------ Light Quantum Reactor Light Quantum Reactor Improved Quantum Reactor > --- PROPULSION ------- Enhanced Biometal Leg Enhanced Biometal Leg Centrium Leg Centrium Leg Centrium Leg Experimental Biometal Leg Experimental Biometal Leg Experimental Biometal Leg > --- UTILITY ---------- Huge Storage Unit Advanced Melee Analysis Suite Advanced Melee Analysis Suite Experimental Core Analyzer Advanced Transmission Jammer SHELL Armor Improved Hacking Suite System Purifier Hacking Drone Bay > --- WEAPON ----------- Molecular Scythe Molecular Scythe Molecular Scythe > --- INVENTORY -------- Light Quantum Reactor Centrium Leg Centrium Leg Advanced Cooling System Experimental Energy Well Experimental Matter Compressor Experimental Core Analyzer Graphene Brace Antimissile System Improved Hacking Suite Advanced Hacking Suite Advanced Component Analysis Suite Improved Trap Extractor Advanced Trap Extractor Neutron Cannon Potential Cannon Improved Potential Cannon Tiamat Missile Launcher Kinetic Spear CR-A16's Behemoth Slayer [Rating: 226] Favorites ----------- Power Reinforced Deuterium Engine Engine Reinforced Deuterium Engine Power Core Neutrino Core Reactor Quantum Reactor Propulsion Combat Gravmag System Treads Light Treads Leg Improved Carbon-fiber Leg Wheel Armored Huge Wheel Hover Unit Combat Gravmag System Flight Unit Cooled Nuclear Pulse Thruster Utility High-capacity Storage Unit Device Advanced Cooling System Storage High-capacity Storage Unit Processor Advanced Targeting Computer Hackware Makeshift Hacking Suite Protection Light Regenerative Plating Weapon Shock Maul Energy Gun Advanced Beam Rifle Energy Cannon Beam Cannon Ballistic Gun Enhanced Autogun Ballistic Cannon Heavy Mass Driver Launcher Tiamat Missile Launcher Special Weapon Advanced Remote Datajack Impact Weapon Shock Maul Slashing Weapon Molecular Scythe Piercing Weapon Kinetic Spear Special Melee Weapon Improved Datajack Build | -11 -10 -10 -8 -8 -7 -7 -7 -7 -6 -6 -6 -6 -6 -6 -6 -6 -5 -5 -5 -5 -4 -4 -4 -4 -4 -3 -3 -3 -2 -1 -1 ------- Run | Yrd Mat Sub Mat Sto Fac Low Low Zio Pro Fac Was Fac Ext Cet Arc Hub Fac Upp Upp Zhi Pro Fac Upp Upp War Pro Res Tes Res Acc Com Slots Evolved 18 | . . . 4 . 2 . . . . 2 . . . . . . 2 . . . . 2 . . . . 2 . 2 2 . Power 2 | . . . . . 1 . . . . . . . . . . . . . . . . . . . . . . . 1 . . Propulsion 6 | . . . 1 . . . . . . 2 . . . . . . 1 . . . . . . . . . 2 . . . . Utility 9 | . . . 3 . 1 . . . . . . . . . . . 1 . . . . 1 . . . . . . 1 2 . Weapon 1 | . . . . . . . . . . . . . . . . . . . . . . 1 . . . . . . . . . Parts Attached 622 | 3 10 30 14 37 41 8 11 15 25 28 8 13 11 4 . 6 42 16 5 11 19 35 8 2 9 14 5 73 45 20 54 Power 48 | . 1 2 1 3 4 . 1 1 2 3 . . . 2 . . 3 1 . 2 . 3 . . . . . 6 6 1 6 Engine 18 | . 1 2 1 3 3 . . 1 1 3 . . . . . . 1 1 . 1 . . . . . . . . . . . Core 7 | . . . . . 1 . 1 . 1 . . . . 1 . . 2 . . . . 1 . . . . . . . . . Reactor 23 | . . . . . . . . . . . . . . 1 . . . . . 1 . 2 . . . . . 6 6 1 6 Propulsion 93 | 2 . 5 4 12 5 . . 2 1 5 2 2 1 1 . . 9 . 1 2 2 7 . . 2 . 2 13 9 1 3 Treads 35 | 2 . 3 2 12 2 . . 1 . 5 2 2 1 1 . . . . . . . . . . . . . 2 . . . Leg 37 | . . . . . 3 . . . . . . . . . . . 9 . 1 1 2 1 . . . . . 7 9 1 3 Wheel 6 | . . 2 2 . . . . 1 1 . . . . . . . . . . . . . . . . . . . . . . Hover 13 | . . . . . . . . . . . . . . . . . . . . . . 6 . . 1 . 2 4 . . . Flight 2 | . . . . . . . . . . . . . . . . . . . . 1 . . . . 1 . . . . . . Utility 250 | . 2 5 4 8 11 4 7 4 10 11 1 9 8 1 . 5 21 8 3 3 10 12 5 2 4 5 3 29 22 12 21 Device 158 | . 1 . 1 2 5 2 2 3 9 3 . 7 7 . . 5 17 5 2 1 5 8 3 1 3 3 1 21 17 10 14 Storage 9 | . 1 2 . . . . . . 1 . . . 1 . . . . . . . . 1 . . . . . . 1 1 1 Processor 13 | . . . . . 1 1 1 . . 2 . . . . . . . . . . . . . . 1 . . . 4 . 3 Hackware 7 | . . . 1 . . . . . . 2 . . . . . . 1 . . . . . . . . . . . . 1 2 Protection 63 | . . 3 2 6 5 1 4 1 . 4 1 2 . 1 . . 3 3 1 2 5 3 2 1 . 2 2 8 . . 1 Artifact . | . . . . . . . . . . . . . . . . . . . . . . . . . . . . . . . . Weapon 231 | 1 7 18 5 14 21 4 3 8 12 9 5 2 2 . . 1 9 7 1 4 7 13 3 . 3 9 . 25 8 6 24 Energy Gun 11 | 1 3 . . 5 2 . . . . . . . . . . . . . . . . . . . . . . . . . . Energy Cannon 30 | . . 1 . . . . . . 2 . . . . . . 1 3 . . . 1 3 . . . 1 . 8 2 1 7 Ballistic Gun 41 | . 1 7 3 4 10 2 2 4 4 4 . . . . . . . . . . . . . . . . . . . . . Ballistic Cannon 9 | . . 1 . . . . . . . . 5 1 1 . . . 1 . . . . . . . . . . . . . . Launcher 38 | . 2 2 2 1 7 2 1 1 1 2 . 1 . . . . . 3 . 1 2 2 1 . 1 2 . 1 1 . 2 Special Weapon 1 | . . . . . . . . . . . . . . . . . . . . . . . . . . . . . . . 1 Impact Weapon 57 | . . 7 . 2 1 . . 1 3 2 . . . . . . 3 3 1 1 4 6 2 . 1 5 . 14 1 . . Slashing Weapon 20 | . . . . . . . . . 1 . . . . . . . . . . . . . . . . . . 1 . 5 13 Piercing Weapon 10 | . . . . . . . . . 1 . . . . . . . . 1 . 1 . 1 . . . 1 . . 4 . 1 Special Melee Weapon 14 | . 1 . . 2 1 . . 2 . 1 . . 1 . . . 2 . . 1 . 1 . . 1 . . 1 . . . Unidentified Prototypes 28 | . . . . 4 . . 1 1 1 . . . . 2 . 1 2 . . 5 . . . . 4 . . 5 2 . . Corrupted Parts 3 | . . . . . . . . . . . . . . . . 1 . . . . 2 . . . . . . . . . . System Corruption 17 | . . . . . . . . . . . . . . . . 7 . . . . 10 . . . . . . . . . . Parts Lost 53 | . . 6 1 5 7 1 4 . . . 2 . . . . 1 4 . . . 2 2 . 1 . 1 . 7 1 . 8 Power 14 | . . 2 1 . 1 . 2 . . . . . . . . . 2 . . . . . . . . . . 2 1 . 3 Propulsion 16 | . . 3 . 1 1 1 2 . . . 1 . . . . . 1 . . . . 1 . . . . . 3 . . 2 Utility 18 | . . . . 4 3 . . . . . 1 . . . . . 1 . . . 2 1 . 1 . 1 . 1 . . 3 Weapon 5 | . . 1 . . 2 . . . . . . . . . . 1 . . . . . . . . . . . 1 . . . Highest Loss Streak 4 | . . 2 1 1 1 1 3 . . . 2 . . . . 1 4 . . . 1 1 . 1 . 1 . 3 1 . 4 To Critical Strikes . | . . . . . . . . . . . . . . . . . . . . . . . . . . . . . . . . Average Slot Usage (%) 90 | . 96 98 96 96 88 86 73 85 91 87 87 85 86 80 80 80 87 100 100 98 99 97 100 99 99 100 94 83 88 91 89 Engine 6 | . 14 13 8 9 12 12 6 3 6 8 13 13 13 6 . . . 5 5 5 5 3 . . . . . . . . . Core 1 | . . . . . 1 . 1 7 7 4 . . . 1 6 6 6 5 5 5 5 4 . . . . . . . . . Reactor 2 | . . . . . . . . . . . . . . 4 6 6 3 . . . . 1 10 10 10 10 9 5 11 12 11 Treads 10 | . 28 24 21 24 11 6 5 5 6 10 26 26 26 20 20 20 8 . . . . . . . . . . 1 . . . Leg 8 | . . . . . 7 17 12 1 . . . . . . . . 16 35 35 34 35 5 . . . . . 11 33 31 31 Wheel 1 | . . 3 5 . . . . 5 7 9 . . . . . . . . . . . . . . . . . . . . . Hover 4 | . . . . . . . . . . . . . . . . . . . . . . 25 31 31 30 31 37 22 . . . Device 7 | . 1 . 9 11 13 11 5 7 7 2 . 5 6 6 6 6 7 10 10 7 10 13 15 12 14 14 14 12 15 11 9 Storage 7 | . 14 13 9 9 6 6 6 7 7 6 6 6 6 6 6 6 5 5 5 5 5 5 5 5 5 5 4 4 4 4 4 Processor 8 | . . . . . 1 12 14 15 15 17 20 13 13 13 13 13 11 11 11 11 6 5 5 5 5 5 4 4 5 12 12 Hackware 1 | . . . 9 9 6 . . . . . . . . . . . . . . . . . . . . . . . . 3 5 Protection 11 | . 9 13 15 14 11 6 5 15 15 12 11 13 13 13 13 13 12 11 11 14 16 14 14 17 15 16 8 5 4 4 4 Energy Gun 1 | . 13 . . 6 5 . . . . . 4 . . . . . . . . . . . . . . . . . . . . Ballistic Gun 6 | . 13 14 17 11 6 11 12 10 13 10 . . . . . . . . . . . . . . . . . . . . . Ballistic Cannon 1 | . . 2 . . . . . . . . 2 5 5 6 6 6 2 . . . . . . . . . . . . . . Impact Weapon 3 | . . 6 . . . . . 2 . . . . . . . . 4 10 10 5 10 14 14 15 12 13 14 10 5 . . Naked Turns . | . . . . . . . . . . . . . . . . . . . . . . . . . . . . . . . . Heaviest Build 210 | 11 32 56 58 62 76 73 80 80 89 90 99 106 106 111 109 109 109 108 103 102 115 115 110 116 122 122 108 128 148 180 210 Greatest Support 235 | 40 40 40 60 60 83 83 65 50 40 130 150 158 158 178 178 178 178 115 117 117 122 122 84 84 84 84 111 193 232 234 235 Greatest Overweight (x) 36 | . . 5 5 1 1 1 1 2 3 3 . . . . 36 . 2 . . . . 2 1 1 1 1 . 1 . . 1 Average Overweight (x) . | . . 1 3 . . . . 1 2 1 . . . . 20 . . . . . . . 1 1 1 1 . . . . . Largest Inventory Capacity 25 | 8 15 20 20 20 20 20 20 20 20 20 20 20 20 20 20 20 20 20 20 20 20 20 20 20 20 20 20 20 20 25 25 Average Capacity 19 | 8 14 17 20 20 20 20 20 20 20 20 20 20 20 20 20 20 20 20 20 20 20 20 20 20 20 20 20 20 20 23 25 Most Carried 25 | 6 15 20 20 20 20 20 20 20 20 20 20 20 20 20 20 20 20 20 20 20 20 20 20 20 20 20 20 20 20 24 25 Average Carried 19 | 6 13 16 19 19 19 19 19 19 19 19 19 19 19 19 20 19 18 19 20 19 19 18 20 19 19 19 19 19 19 21 23 Final Capacity 25 | 8 15 20 20 20 20 20 20 20 20 20 20 20 20 20 20 20 20 20 20 20 20 20 20 20 20 20 20 20 20 25 25 Final Carried 24 | 6 15 20 20 20 20 20 19 20 20 20 20 20 20 20 20 19 20 20 20 20 20 20 20 20 20 19 20 17 20 24 13 Class Distribution -------------------- 43% | Mutant 22% | Scavenger-Mutant 14% | Trapper-Mutant 6% | Commander-Mutant 6% | Derelict-Mutant Dominant Class ---------------- Mutant | -10/Materials Mutant | -10/Subcaves Scavenger-Mutant | -8/Materials Scavenger-Mutant | -8/Storage Mutant | -7/Factory Mutant | -7/Lower Caves Mutant | -7/Lower Caves Mutant | -7/Zion Mutant | -6/Proximity Caves Scavenger-Mutant | -6/Factory Mutant | -6/Waste Mutant | -6/Factory Commander-Mutant | -6/Extension Commander-Mutant | -6/Cetus Commander-Mutant | -6/Archives Scavenger-Mutant | -6/Hub_04(d) Scavenger-Mutant | -5/Factory Scavenger-Mutant | -5/Upper Caves Scavenger-Mutant | -5/Upper Caves Scavenger-Mutant | -5/Zhirov Scavenger-Mutant | -4/Proximity Caves Scavenger-Mutant | -4/Factory Trapper-Mutant | -4/Upper Caves Trapper-Mutant | -4/Upper Caves Trapper-Mutant | -4/Warlord Trapper-Mutant | -3/Proximity Caves Trapper-Mutant | -3/Research Trapper-Mutant | -3/Testing Trapper-Mutant | -2/Research Trapper-Gladiator | -1/Access Scavenger-Gladiator | -1/Command Resources | -11 -10 -10 -8 -8 -7 -7 -7 -7 -6 -6 -6 -6 -6 -6 -6 -6 -5 -5 -5 -5 -4 -4 -4 -4 -4 -3 -3 -3 -2 -1 -1 ----------- Run | Yrd Mat Sub Mat Sto Fac Low Low Zio Pro Fac Was Fac Ext Cet Arc Hub Fac Upp Upp Zhi Pro Fac Upp Upp War Pro Res Tes Res Acc Com Matter Collected 14787 | 199 122 629 339 884 1028 186 2496 130 506 730 252 279 611 171 33 222 702 294 50 110 426 699 196 45 93 434 . 927 1029 235 730 Remotely . | . . . . . . . . . . . . . . . . . . . . . . . . . . . . . . . . Salvage Created 17999 | . 216 434 382 1533 2103 250 752 . 315 462 239 274 959 172 51 241 907 236 104 272 578 699 217 83 . 172 . 1670 1342 1494 1842 Parts 771 | . 25 30 28 65 119 6 30 . 6 18 . 11 41 9 1 11 28 20 1 1 24 20 8 3 . 7 . 56 36 87 80 Haulers Intercepted 19 | . 1 . 1 5 3 . . . . 1 . . . . . . 3 . . . . 1 . . . . . 1 2 1 . Recyclers Shooed 10 | . . . . 3 3 . . . . 1 . . . . . . . . . . . . . . . . . 2 . . 1 Parts Field Recycled . | . . . . . . . . . . . . . . . . . . . . . . . . . . . . . . . . Retrieved Matter . | . . . . . . . . . . . . . . . . . . . . . . . . . . . . . . . . Parts Self-Destructed 135 | . . 2 . . . 3 36 1 35 . . . . . . . . 17 1 1 17 . 20 . . 2 . . . . . Prevented 7 | . . . . . . 2 . . . . . . . . . . . . . . 3 . . 2 . . . . . . . Kills | -11 -10 -10 -8 -8 -7 -7 -7 -7 -6 -6 -6 -6 -6 -6 -6 -6 -5 -5 -5 -5 -4 -4 -4 -4 -4 -3 -3 -3 -2 -1 -1 ------- Run | Yrd Mat Sub Mat Sto Fac Low Low Zio Pro Fac Was Fac Ext Cet Arc Hub Fac Upp Upp Zhi Pro Fac Upp Upp War Pro Res Tes Res Acc Com Combat Hostiles Destroyed 302 | . 9 13 11 28 46 3 18 . 2 7 1 5 15 4 1 5 10 8 1 . 15 8 7 1 . 8 . 19 13 17 27 Melee 57 | . . 1 1 1 . . . . . . . . 4 . . . 5 1 . . 2 2 1 . . . . 6 4 17 12 Guns 65 | . 5 3 5 18 21 1 8 . 1 3 . . . . . . . . . . . . . . . . . . . . . Cannons 44 | . . 7 . . . . . . . . 1 5 11 4 1 4 3 . . . . 1 . . . . . 1 1 . 5 AOE 106 | . 4 1 5 7 25 2 10 . . 4 . . . . . . . 6 . . 10 1 6 . . 7 . 5 5 . 8 Classes Destroyed 30 | . 4 2 3 5 4 . 3 . 1 . 1 1 1 . . 1 . . . . . . . . . . . 1 2 1 . Worker 19 | . . . . 2 6 . . . . 1 . . . . . 2 1 . . . . . . . . . . 2 . 2 3 Builder 6 | . . . . . 2 . . . . 1 . . . . . 1 . . . . . 1 . . . . . . . 1 . Tunneler 2 | . . . . . 2 . . . . . . . . . . . . . . . . . . . . . . . . . . Hauler 19 | . 1 . 1 5 3 . . . . 1 . . . . . . 3 . . . . 1 . . . . . 1 2 1 . Recycler 18 | . . . 1 1 2 . . . . 1 . . 3 . . . . . . . . 1 . . . . . 4 2 . 3 Minesweeper 4 | . . . . . . . 1 . . . . . . . . . . . . . 1 . 2 . . . . . . . . Mechanic 3 | . . . . 2 . . . . . . . . . . . . . . . . . . . . . . . . . . 1 Operator 12 | . . . 2 . 3 . . . . . . 1 . . . . . . . . . . . . . . . 3 1 1 1 Watcher 13 | . 2 . . 2 1 . . . . . . 1 2 . . . 1 . . . . . . . . . . 2 1 1 . Swarmer 66 | . 6 . 6 . 5 3 1 . . 4 . . 2 2 . 1 . 6 . . 5 . 5 . . 4 . 5 3 1 7 Saboteur 1 | . . . . . . . . . . . . . 1 . . . . . . . . . . . . . . . . . . Grunt 105 | . 3 . 3 14 30 . 13 . 1 . . 2 6 1 . . 3 . . . 10 2 2 . . 3 . 2 3 5 2 Brawler 9 | . . . . 3 1 . 2 . . . . . . . . . 1 . . . . . . . . 1 . . . . 1 Duelist 4 | . . . . 1 1 . . . . . . 1 . . . . . . . . . . . . . . . . . . 1 Protector 2 | . . . . 1 1 . . . . . . . . . . . . . . . . . . . . . . . . . . Researcher 1 | . . . . . . . . . . . . . . . . . . . . . . . . . . . . 1 . . . Sentry 37 | . . . 2 9 5 . 1 . . 2 . 2 4 . 1 1 1 1 . . . 1 . 1 . . . . 1 2 3 Demolisher 1 | . . . . . . . . . . . . . 1 . . . . . . . . . . . . . . . . . . Specialist 1 | . . . . . . . . . . . . . . . . . . . . . . . . . . . . . . 1 . Hunter 14 | . . . . . 1 . . . . 1 . . . . . 1 2 . 1 . . 2 . . . . . 3 1 . 2 Programmer 32 | . . . . . 2 . 1 . . 1 . . . . . . 3 . . . . 2 . . . . . 9 1 8 5 Heavy 1 | . . . . . . . . . . . . . . . . 1 . . . . . . . . . . . . . . . Behemoth 6 | . . . . . . . . . 1 . . . 1 . . . . 1 . . . 1 . . . . . . 1 . 1 Compactor 1 | . . . . . . . . . . . 1 . . . . . . . . . . . . . . . . . . . . Cetus Guard 1 | . . . . . . . . . . . . . . 1 . . . . . . . . . . . . . . . . . M Guard 2 | . . . . . . . . . . . . . . . . . . . . . . . . . . . . . . . 2 Lightning 1 | . . . . . . . . . . . . . . . . 1 . . . . . . . . . . . . . . . Combat Programmer 1 | . . . . . . . . . . . . . . . . . . . . . . . . . . . . . . . 1 Striker 1 | . . . . . . . . . . . . . . . . . . . . . . . . . . . . . 1 . . Executioner 3 | . . . . . . . . . . . . . . . . . . . . . . . . . . . . . 2 . 1 Artisan 1 | . . 1 . . . . . . . . . . . . . . . . . . . . . . . . . . . . . Subdweller 13 | . . 13 . . . . . . . . . . . . . . . . . . . . . . . . . . . . . Samaritan 1 | . . . . . . . 1 . . . . . . . . . . . . . . . . . . . . . . . . Tinkerer 1 | . . . . . . . 1 . . . . . . . . . . . . . . . . . . . . . . . . Surgeon 1 | . . . . . . . . . . . . . . 1 . . . . . . . . . . . . . . . . . Savage 1 | . . . . . . . . . . . . . . . . 1 . . . . . . . . . . . . . . . Martyr 1 | . . . . . . . . . . . . 1 . . . . . . . . . . . . . . . . . . . Guerrilla 1 | . . . . . . . . . . . . . 1 . . . . . . . . . . . . . . . . . . Best Kill Streak 12 | . 3 2 6 12 9 3 10 . 1 4 1 3 5 2 1 3 5 4 1 . 5 3 4 1 . 4 . 6 6 4 7 Combat Bots Only 11 | . 3 2 3 11 6 3 10 . 1 3 1 3 3 2 1 2 5 4 1 . 5 3 4 1 . 4 . 5 6 4 5 Max Kills in Single Turn 5 | . 2 1 3 3 5 2 3 . 1 4 1 2 1 1 1 2 2 3 1 . 5 1 4 1 . 2 . 5 3 1 3 Gunslinging 1 | . . . 1 1 . . 1 . . . . . . . . . . . . . . . . . . . . . . . . Exploded 5 | . 2 1 2 3 3 2 3 . . 3 . . . . . . . 3 . . 5 1 4 . . 2 . 4 3 . 2 Melee 1 | . . 1 1 1 . . . . . . . . 1 . . . 1 1 . . 1 1 1 . . . . 1 1 1 1 Uniques/NPCs Destroyed 1 | . . . . . . . . . . . . . . . . . . . . . . . . . . . . . . . 1 MAIN.C (-1/Command) Combat | -11 -10 -10 -8 -8 -7 -7 -7 -7 -6 -6 -6 -6 -6 -6 -6 -6 -5 -5 -5 -5 -4 -4 -4 -4 -4 -3 -3 -3 -2 -1 -1 -------- Run | Yrd Mat Sub Mat Sto Fac Low Low Zio Pro Fac Was Fac Ext Cet Arc Hub Fac Upp Upp Zhi Pro Fac Upp Upp War Pro Res Tes Res Acc Com Hostile Shots Fired 2236 | . 25 80 37 140 388 8 70 . 44 77 2 19 140 12 . 51 115 29 5 . 64 79 12 10 10 25 8 300 104 129 253 Missed 701 | . 7 22 11 40 125 3 25 . 17 30 . 10 47 5 . 22 27 10 2 . 19 29 2 1 3 12 3 94 30 32 73 Damage Taken 28034 | . 190 1257 379 1560 2076 69 1008 . 311 471 147 164 914 150 22 721 1671 345 56 . 1003 923 238 206 74 92 57 4847 2033 1844 5206 Core 1622 | . 17 172 15 70 235 13 57 . 15 65 . . 59 . . . 38 51 . . 115 97 17 . 9 . . 203 176 122 76 Absorbed by Shields 2664 | . . . . 22 832 . . . 99 43 . . 280 48 . . . . . . . . . . 71 88 54 24 . 464 639 Reduced by Siege Mode 5 | . . . . . . . . . . . . . . . . . 5 . . . . . . . . . . . . . . Redirected to Shielding 204 | . . . . . 3 . . . . . . . . . . . . . . . 166 . . . . . . . . . 35 Regen/Repaired (Parts) 9874 | . . . . 101 372 . 92 45 63 95 263 21 390 98 . 19 1156 175 16 . 120 757 41 23 14 5 . 1665 1383 1005 1955 Core Remaining (%) 76 | 100 . 24 . 84 . . . . 54 . . . . . . 85 . . . . 79 . . . . 89 . 76 87 . 87 Volleys Fired 708 | . 25 76 26 85 134 7 46 . 63 18 9 10 45 11 3 20 9 3 . . 13 9 4 . . 10 . 19 9 6 48 Largest 2 | . 2 2 2 2 2 2 2 . 2 2 1 1 1 1 1 1 2 1 . . 1 1 1 . . 1 . 1 1 1 1 Hottest 200 | . 70 99 58 86 136 50 58 . 90 58 61 75 75 75 75 75 151 46 . . 90 90 46 . . 90 . 90 90 90 200 Shots Fired 1122 | . 46 135 49 165 242 13 85 . 119 34 9 10 45 11 3 20 16 3 . . 12 9 4 . . 10 . 19 9 6 48 Gun 757 | . 42 61 46 159 216 12 77 . 112 32 . . . . . . . . . . . . . . . . . . . . . Cannon 262 | . . 68 . . . . . . 7 . 9 8 45 11 3 20 16 . . . 1 6 . . . 1 . 18 6 6 37 Launcher 102 | . 4 6 3 6 26 1 8 . . 2 . 2 . . . . . 3 . . 11 3 4 . . 9 . 1 3 . 10 Special 1 | . . . . . . . . . . . . . . . . . . . . . . . . . . . . . . . 1 Kinetic 716 | . 21 91 46 114 108 12 77 . 112 32 9 8 45 11 3 20 7 . . . . . . . . . . . . . . Thermal 304 | . 21 41 . 45 108 . . . 7 . . . . . . . 9 . . . 1 4 . . . 1 . 18 6 6 37 Explosive 99 | . 4 3 3 6 26 1 8 . . 2 . 2 . . . . . 3 . . 11 3 4 . . 9 . 1 3 . 10 Electromagnetic 2 | . . . . . . . . . . . . . . . . . . . . . . 2 . . . . . . . . . Robot Hit Streak 46 | . 5 23 7 12 19 13 17 . 39 46 5 4 10 5 4 5 5 . . . 12 17 18 . . 9 . 4 5 . 6 Robot Miss Streak 4 | . 4 3 4 3 3 . 3 . 1 2 2 2 4 1 . 2 1 . . . . . 1 . . . . 1 . . 3 Penetration Max 1 | . . . . . . . . . . . . 1 1 . . . 1 . . . . . . . . . . . . . . Secondary Targets 7 | . . . 1 2 3 . 1 . . . . . . . . . . . . . . . . . . . . . . . . Max Gunslinging Chain 1 | . . . 1 1 1 . 1 . . . . . . . . . . . . . . . . . . . . . . . . Shots Hit Robots 1052 | . 21 92 29 127 177 9 58 2 107 27 6 5 29 8 3 12 29 4 3 7 19 22 5 1 6 9 1 68 42 53 71 Core Hits 627 | . 16 22 17 65 134 7 52 . 33 18 2 6 16 5 1 9 12 9 . 1 29 10 8 . . 18 . 22 21 29 65 Critical Kills 13 | . . . . . 2 . . . . . 1 . . . . . 4 . . . . 1 1 . . . . 3 . . 1 Critical Parts Destroyed 43 | . . . . 4 1 . . . . . . . . . . . 8 . 1 . 3 4 . 1 . 1 . 16 4 . . Critical Strikes 99 | . 1 1 . 5 5 . . . 2 . 4 1 4 1 1 1 13 . 1 . 3 5 1 1 . 1 . 22 8 10 8 Burn 4 | . 1 . . 1 2 . . . . . . . . . . . . . . . . . . . . . . . . . . Meltdown 1 | . . . . . . . . . . . . . . . . . . . . . . . . . . . . . . . 1 Destroy 14 | . . . . 1 3 . . . . . 4 . . . . . 6 . . . . . . . . . . . . . . Blast 8 | . . . . . . . . . . . . 1 4 1 1 1 . . . . . . . . . . . . . . . Smash 46 | . . 1 . 3 . . . . . . . . . . . . 7 . 1 . 3 5 1 1 . 1 . 19 4 . . Sever 22 | . . . . . . . . . 2 . . . . . . . . . . . . . . . . . . 3 . 10 7 Impale 4 | . . . . . . . . . . . . . . . . . . . . . . . . . . . . . 4 . . Melee Attacks 576 | . . 53 . 16 1 . . 3 14 4 . . 1 . . . 30 5 6 8 18 38 5 4 18 2 8 115 59 93 75 Impact 323 | . . 53 . 15 1 . . 1 9 2 . . . . . . 30 4 6 1 18 36 5 4 12 2 8 90 26 . . Slashing 193 | . . . . . . . . . 3 . . . . . . . . . . . . . . . . . . 25 . 91 74 Piercing 45 | . . . . . . . . . 2 . . . . . . . . 1 . 4 . 2 . . . . . . 33 2 1 Sneak Attacks 52 | . . . . 1 . . . 2 . 2 . . 1 . . . 2 . . 3 1 3 2 . 6 . . 11 6 7 5 Combat Hostiles 2 | . . . . . . . . . . . . . . . . . . . . . . . . . . . . 2 . . . Follow-up Attacks 1 | . . . . . . . . . . . . . . . . . . . . . . . . . . . . . . 1 . Damage Inflicted 53506 | . 593 2229 1051 4227 7291 339 2046 . 1444 1095 127 615 2807 733 212 1486 1458 796 156 237 2758 1483 958 39 . 1501 38 5097 2736 3423 6531 Guns 9595 | . 210 518 584 2304 3136 180 969 . 1255 439 . . . . . . . . . . . . . . . . . . . . . Cannons 8477 | . . 840 . . . . . . . . 127 531 2742 733 212 916 355 . . . . 78 . . . . . 183 77 37 1646 Explosions 17546 | . 358 401 467 1344 4053 159 1077 . . 642 . 18 . . . 537 . 669 . . 1934 392 636 . . 1458 . 572 598 . 2231 Melee 17519 | . . 470 . 523 . . . . 189 . . . . . . . 1095 127 156 237 824 1013 322 39 . 43 38 4342 2061 3386 2654 Ramming 369 | . 25 . . 56 102 . . . . 14 . 66 65 . . 33 8 . . . . . . . . . . . . . . Kinetic 13142 | . 67 1159 584 1610 1486 180 969 . 1255 439 127 531 2742 733 212 916 132 . . . . . . . . . . . . . . Thermal 6797 | . 143 472 . 694 2423 . . . . . . . . . . . 223 . . . . . . . . . . 330 77 37 2398 Explosive 15064 | . 358 128 467 1344 3280 159 1077 . . 642 . 18 . . . . . 669 . . 1934 392 636 . . 1458 . 425 598 . 1479 Electromagnetic 615 | . . . . . . . . . . . . . . . . 537 . . . . . 78 . . . . . . . . . Impact 8575 | . . 470 . 523 . . . . . . . . . . . . 1095 127 156 . 824 1013 322 39 . 43 38 2826 1099 . . Slashing 7715 | . . . . . . . . . 159 . . . . . . . . . . . . . . . . . . 1516 . 3386 2654 Piercing 1229 | . . . . . . . . . 30 . . . . . . . . . . 237 . . . . . . . . 962 . . Highest Corruption 14 | . . . . 1 1 . . . . . . 2 . . . 13 10 10 . . 14 6 6 6 6 . . 14 2 6 10 Average Corruption 4 | . . . . 1 1 . . . . . . 1 . . . 4 7 4 . . 4 5 6 6 6 . . 4 1 3 6 Corruption Purged 33 | . . . . . 1 . . . . . . 2 . . . . 5 10 . . . . . . . . . . 2 8 5 Corruption Blocked 33 | . . . . . . . . . . . . . . . . . . . . . . . . . . . . 15 . . 18 Effects 168 | . . . . 17 4 . . . . . . . . . . . 16 4 . . 17 15 29 12 . . . 26 . 12 16 Message Errors 38 | . . . . 6 . . . . . . . . . . . . 4 . . . 6 1 10 3 . . . 4 . 1 3 Matter Fused 39 | . . . . 4 2 . . . . . . . . . . . 3 1 . . 3 4 5 2 . . . 7 . 2 6 Heat Flow Errors 25 | . . . . 2 . . . . . . . . . . . . 3 1 . . 2 3 3 5 . . . 5 . 1 . Energy Discharges 22 | . . . . . . . . . . . . . . . . . 5 1 . . 1 1 4 1 . . . 1 . 4 4 Parts Rejected 2 | . . . . . . . . . . . . . . . . . . . . . . . . . . . . . . 1 1 Parts Fused 1 | . . . . . . . . . . . . . . . . . . . . . 1 . . . . . . . . . . Data Loss (minor) 24 | . . . . 3 2 . . . . . . . . . . . 1 1 . . 2 4 3 1 . . . 3 . 3 1 Data Loss (major) 7 | . . . . . . . . . . . . . . . . . . . . . . 1 2 . . . . 4 . . . Misfires 2 | . . . . 2 . . . . . . . . . . . . . . . . . . . . . . . . . . . Alerts 6 | . . . . . . . . . . . . . . . . . . . . . 1 1 2 . . . . 1 . . 1 Misdirections 1 | . . . . . . . . . . . . . . . . . . . . . . . . . . . . 1 . . . Weapon Failures 1 | . . . . . . . . . . . . . . . . . . . . . 1 . . . . . . . . . . Overload Shots . | . . . . . . . . . . . . . . . . . . . . . . . . . . . . . . . . Overflow Damage 6171 | . 10 39 18 196 81 . . . . 72 . 30 181 56 . 115 573 78 112 126 388 328 181 39 . 56 . 1852 815 197 628 Projectiles 601 | . . . . . . . . . . . . 30 177 56 . 105 8 . . . . . . . . . . . 19 . 206 Explosions 597 | . 10 . 18 10 76 . . . . 72 . . . . . 10 . 78 . . 17 26 . . . 13 . 105 122 . 40 Melee 4973 | . . 39 . 186 5 . . . . . . . 4 . . . 565 . 112 126 371 302 181 39 . 43 . 1747 674 197 382 Knockbacks 49 | . 1 6 . . . . . . . . . . 12 1 . 4 7 . . . 4 1 1 . . . . 9 3 . . Impact 27 | . 1 3 . . . . . . . . . . . . . . 5 . . . 4 1 1 . . . . 9 3 . . Kinetic 19 | . . 3 . . . . . . . . . . 11 1 . 4 . . . . . . . . . . . . . . . Secondary 3 | . . . . . . . . . . . . . 1 . . . 2 . . . . . . . . . . . . . . Self-Inflicted Damage 688 | . . 58 . 11 133 . 93 . . 7 . . . . . 97 . . . . 77 . 69 . . . . 93 . . 50 Shots 17 | . . 2 . 1 4 . 4 . . . . . . . . 1 . . . . 1 . 2 . . . . 1 . . 1 Rammed 26 | . 8 . . 5 2 . . . . 1 . 2 3 . . 3 2 . . . . . . . . . . . . . . Targets Rammed 49 | . 9 . 1 8 11 . . . . 1 . 4 7 . . 4 4 . . . . . . . . . . . . . . Kicked 11 | . . . . . 9 . . . . . . . . . . . 2 . . . . . . . . . . . . . . Crushed 12 | . 1 . 1 3 . . . . . . . 2 4 . . 1 . . . . . . . . . . . . . . . Highest Temperature 349 | . 140 32 24 246 280 . 227 . 208 116 348 331 308 88 58 273 143 91 . . 158 193 177 249 . . . 229 349 171 348 Average Temperature 50 | . 40 10 9 40 51 . 64 . 40 27 171 17 85 33 26 95 51 50 . . 84 89 85 114 . . . 89 199 21 87 Received Heat Transfer 4646 | . 60 162 243 720 775 . 324 . 67 114 . 33 290 13 . 90 171 12 . . 232 45 46 45 32 10 . 284 470 207 201 Effects 1 | . . . . . . . . . . . . . 1 . . . . . . . . . . . . . . . . . . Energy Bleed 1 | . . . . . . . . . . . . . 1 . . . . . . . . . . . . . . . . . . Siege Activations 1 | . . . . . . . . . . . . . . . . . 1 . . . . . . . . . . . . . . Total Turns 10 | . . . . . . . . . . . . . . . . . 10 . . . . . . . . . . . . . . Longest Duration 10 | . . . . . . . . . . . . . . . . . 10 . . . . . . . . . . . . . . Robots Corrupted 2 | . . . . . . . . . . . . . . . . 1 . . . . . 1 . . . . . . . . . Combat Hostiles 2 | . . . . . . . . . . . . . . . . 1 . . . . . 1 . . . . . . . . . Parts Fried 52 | . . 2 . 3 . . . . . . . . . . . 4 4 . 1 . 4 4 2 1 . . . 18 9 . . Impact Corruptions 112 | . . 2 . 7 1 . . . . . . . 1 . . . 13 . 3 . 13 8 4 1 . 1 . 46 12 . . Robots Melted 1 | . . . . . . . . . . . . . . . . . . . . . . . . . . . . . . . 1 Combat Hostiles 1 | . . . . . . . . . . . . . . . . . . . . . . . . . . . . . . . 1 Parts Melted 18 | . . . . 1 7 . . . . . . . 1 1 . . . . . . . 4 . . . . . 2 . . 2 Heat Transferred 7785 | . 481 999 . 1332 3484 . . . . . . . . . . . . . . . . . . . . . . 100 . . 1389 Parts Sabotaged . | . . . . . . . . . . . . . . . . . . . . . . . . . . . . . . . . Parts Stolen . | . . . . . . . . . . . . . . . . . . . . . . . . . . . . . . . . Parts Stripped . | . . . . . . . . . . . . . . . . . . . . . . . . . . . . . . . . Power Chain Reactions 1 | . . . . . . . . . . . . . . . . . . . . . . . . . . . . 1 . . . Missiles Intercepted 5 | . . . . . . . . . . . . . . . . . . . . . . . . . . . . . . . 5 Alert | -11 -10 -10 -8 -8 -7 -7 -7 -7 -6 -6 -6 -6 -6 -6 -6 -6 -5 -5 -5 -5 -4 -4 -4 -4 -4 -3 -3 -3 -2 -1 -1 ------- Run | Yrd Mat Sub Mat Sto Fac Low Low Zio Pro Fac Was Fac Ext Cet Arc Hub Fac Upp Upp Zhi Pro Fac Upp Upp War Pro Res Tes Res Acc Com Peak Influence 1267 | . 185 . 430 492 1142 . . . . 396 126 940 787 1267 676 910 688 . . . . 169 . . . . 72 385 282 536 1215 Initial 506 | . . . . 103 166 . . . . 51 126 . 389 440 506 74 441 . . . . 9 . . . . . 40 140 168 342 Average 344 | . 87 . 283 263 510 . . . . 206 72 496 324 825 446 408 508 . . . . 59 . . . . 30 243 163 334 884 Maximum Alert Level 4 | . . . 2 2 4 . . . . 1 . 3 3 4 2 3 2 . . . . . . . . . . 1 1 2 4 Low Security (%) 38 | 100 100 . 18 51 14 . . . . 41 100 30 44 . . 28 . . . . . 100 . . . . 100 24 56 22 . Level 1 27 | . . . 71 12 34 . . . . 58 . . 16 1 43 7 5 . . . . . . . . . . 75 43 45 15 Level 2 23 | . . . 10 36 20 . . . . . . 36 35 28 56 58 94 . . . . . . . . . . . . 31 6 Level 3 8 | . . . . . 29 . . . . . . 32 3 53 . 5 . . . . . . . . . . . . . . 42 Level 4 2 | . . . . . . . . . . . . . . 16 . . . . . . . . . . . . . . . . 35 Level 5 . | . . . . . . . . . . . . . . . . . . . . . . . . . . . . . . . . High Security . | . . . . . . . . . . . . . . . . . . . . . . . . . . . . . . . . Max Security . | . . . . . . . . . . . . . . . . . . . . . . . . . . . . . . . . Squads Dispatched 72 | . . . 1 4 9 . 1 . . 3 . 11 4 . . 5 6 . . . . 3 . . . . . 6 3 8 8 Investigation 13 | . . . 1 1 1 . . . . 1 . 3 2 . . 1 1 . . . . . . . . . . 1 . . 1 Extermination 17 | . . . . . 3 . . . . 1 . 1 . . . 1 1 . . . . 2 . . . . . 3 . 3 2 Reinforcement 23 | . . . . 1 1 . . . . 1 . 4 1 . . 2 1 . . . . 1 . . . . . 2 3 3 3 Assault 10 | . . . . 2 1 . 1 . . . . 1 1 . . . . . . . . . . . . . . . . 2 2 Garrison 9 | . . . . . 3 . . . . . . 2 . . . 1 3 . . . . . . . . . . . . . . Intercept . | . . . . . . . . . . . . . . . . . . . . . . . . . . . . . . . . Searches Triggered . | . . . . . . . . . . . . . . . . . . . . . . . . . . . . . . . . Construction Impeded 3 | . . . . . 1 . . . . 1 . 1 . . . . . . . . . . . . . . . . . . . Haulers Reinforced 4 | . . . . . . . . . . . . 2 . . . . 1 . . . . . . . . . . . 1 . . Active Scanning Responses . | . . . . . . . . . . . . . . . . . . . . . . . . . . . . . . . . Cargo Convoy Interrupts . | . . . . . . . . . . . . . . . . . . . . . . . . . . . . . . . . Stealth | -11 -10 -10 -8 -8 -7 -7 -7 -7 -6 -6 -6 -6 -6 -6 -6 -6 -5 -5 -5 -5 -4 -4 -4 -4 -4 -3 -3 -3 -2 -1 -1 --------- Run | Yrd Mat Sub Mat Sto Fac Low Low Zio Pro Fac Was Fac Ext Cet Arc Hub Fac Upp Upp Zhi Pro Fac Upp Upp War Pro Res Tes Res Acc Com Distress Signals 66 | . 1 . 1 2 4 . . . 24 1 . 3 . 2 . 3 2 . . . . . . . 1 . 3 2 4 1 12 Communications Jammed 81 | . . . . . . . . . . . . . . . . . . . . . . . . . . . . 45 . 35 1 Distress Signals 81 | . . . . . . . . . . . . . . . . . . . . . . . . . . . . 45 . 35 1 Times Spotted 602 | . 19 15 21 38 66 3 24 . 27 24 6 24 41 30 3 27 24 7 1 . 17 15 7 1 5 9 7 32 21 34 54 Peak Tracking Total 9 | . 3 2 5 9 9 3 9 . 7 3 5 6 8 5 1 6 5 4 1 . 4 2 4 1 4 4 4 8 5 6 7 Tactical Retreats 30 | . 1 1 3 . 4 . 2 . 1 . . 1 1 . . 1 2 . . . 2 . . . . 1 2 1 2 4 1 Traps | -11 -10 -10 -8 -8 -7 -7 -7 -7 -6 -6 -6 -6 -6 -6 -6 -6 -5 -5 -5 -5 -4 -4 -4 -4 -4 -3 -3 -3 -2 -1 -1 ------- Run | Yrd Mat Sub Mat Sto Fac Low Low Zio Pro Fac Was Fac Ext Cet Arc Hub Fac Upp Upp Zhi Pro Fac Upp Upp War Pro Res Tes Res Acc Com Traps Triggered 20 | . . 1 . 4 . . . . . 3 . 2 . . . 2 2 . . . . . . . . . 1 4 . 1 . Indirectly 2 | . . . . . . . . . . . . . . . . 2 . . . . . . . . . . . . . . . Trap Hack Attempts 121 | . 28 . . 41 1 . . . . 5 . . . . . . 33 . . . . 6 . . . . . 7 . . . Triggered . | . . . . . . . . . . . . . . . . . . . . . . . . . . . . . . . . Disarmed 3 | . 1 . . . . . . . . . . . . . . . . . . . . 2 . . . . . . . . . Reprogrammed 23 | . 3 . . 11 1 . . . . 1 . . . . . . 6 . . . . . . . . . . 1 . . . Reused 21 | . . . . 6 1 . . . . . . . . . . . . . . . 6 5 . . . 2 . 1 . . . Traps Extracted 7 | . . . . . . . . . . . . . . . . . 6 . . . . 1 . . . . . . . . . Installed 14 | . . . . . . . . . . . . . . . . . . . . . 6 6 . . . 2 . . . . . Triggered 34 | . . . . 6 1 1 2 . . . . . . . . . . . . . 6 5 3 . 7 2 . 1 . . . Most Traps Carried 10 | . . . . . . . . . . . . . . . . . 6 6 6 6 9 9 10 10 10 10 8 8 8 8 8 Objects Rigged 10 | . . . . . 10 . . . . . . . . . . . . . . . . . . . . . . . . . . Exploded 3 | . . . . . 3 . . . . . . . . . . . . . . . . . . . . . . . . . . Machines | -11 -10 -10 -8 -8 -7 -7 -7 -7 -6 -6 -6 -6 -6 -6 -6 -6 -5 -5 -5 -5 -4 -4 -4 -4 -4 -3 -3 -3 -2 -1 -1 ---------- Run | Yrd Mat Sub Mat Sto Fac Low Low Zio Pro Fac Was Fac Ext Cet Arc Hub Fac Upp Upp Zhi Pro Fac Upp Upp War Pro Res Tes Res Acc Com Machines Disabled 54 | . . 1 2 2 19 . 2 . 3 2 . 4 1 2 2 5 1 . . . . . . . . . . 5 . . 3 Max in Single Turn 9 | . . 1 1 1 9 . 1 . 1 . . . 1 . . 3 . . . . . . . . . . . 1 . . 1 Garrison Access 9 | . . . . 1 1 . . . . 2 . 1 . . . . . . . . . . . . . . . . 4 . . Network Hub 2 | . . . . . . . . . . . . . . . . 2 . . . . . . . . . . . . . . . Machines Repaired . | . . . . . . . . . . . . . . . . . . . . . . . . . . . . . . . . Machines Dismantled . | . . . . . . . . . . . . . . . . . . . . . . . . . . . . . . . . Machines Sabotaged 1 | . . . . . . . . . . . . . . . . 1 . . . . . . . . . . . . . . . Overloaded Fab Kills . | . . . . . . . . . . . . . . . . . . . . . . . . . . . . . . . . Hacking | -11 -10 -10 -8 -8 -7 -7 -7 -7 -6 -6 -6 -6 -6 -6 -6 -6 -5 -5 -5 -5 -4 -4 -4 -4 -4 -3 -3 -3 -2 -1 -1 --------- Run | Yrd Mat Sub Mat Sto Fac Low Low Zio Pro Fac Was Fac Ext Cet Arc Hub Fac Upp Upp Zhi Pro Fac Upp Upp War Pro Res Tes Res Acc Com Machines Accessed 108 | . 9 2 2 13 16 1 1 . . 9 . 5 5 1 . 4 8 . . 4 . 4 1 1 3 . 1 5 . 5 8 Terminals 56 | . 7 . 1 10 7 . . . . 2 . 2 5 1 . 4 1 . . . . 2 . . . . . 2 . 4 8 Fabricators 9 | . . . . . 1 . . . . 1 . . . . . . 4 . . . . . . . . . . 2 . 1 . Repair Stations 11 | . 1 . 1 1 1 . . . . 1 . . . . . . 3 . . . . 2 . . . . . 1 . . . Recycling Units 9 | . 1 . . 1 3 . . . . 2 . 1 . . . . . . . . . . . . . . 1 . . . . Scanalyzers 4 | . . . . . 2 . . . . 1 . 1 . . . . . . . . . . . . . . . . . . . Garrison Access 6 | . . . . 1 2 . . . . 2 . 1 . . . . . . . . . . . . . . . . . . . Total Hacks 307 | . 23 2 5 40 41 1 1 . . 20 . 13 15 1 . 15 31 . . 17 . 22 1 1 11 . 1 15 . 11 20 Successful 154 | . 9 2 3 22 20 1 1 . . 11 . 5 3 . . 5 11 . . 17 . 13 1 1 11 . . 5 . 4 9 Failed 152 | . 13 . 2 18 21 . . . . 9 . 8 12 1 . 10 20 . . . . 9 . . . . 1 10 . 7 11 Catastrophic 29 | . 3 . 1 . 3 . . . . 4 . . 2 1 . 2 6 . . . . 2 . . . . 1 2 . . 2 Database Lockouts 1 | . 1 . . . . . . . . . . . . . . . . . . . . . . . . . . . . . . Manual 67 | . 11 . 1 16 12 . . . . 2 . 4 2 1 . 2 3 . . . . . . . . . . . . 2 11 Terminals 162 | . 19 . 3 35 18 . . . . 4 . 5 15 1 . 15 4 . . . . 9 . . . . . 8 . 6 20 Fabricators 30 | . . . . . 2 . . . . 6 . . . . . . 11 . . . . . . . . . . 6 . 5 . Repair Stations 41 | . 2 . 2 2 3 . . . . 2 . . . . . . 16 . . . . 13 . . . . . 1 . . . Recycling Units 16 | . 2 . . 2 6 . . . . 2 . 3 . . . . . . . . . . . . . . 1 . . . . Scanalyzers 12 | . . . . . 7 . . . . 2 . 3 . . . . . . . . . . . . . . . . . . . Garrison Access 12 | . . . . 1 5 . . . . 4 . 2 . . . . . . . . . . . . . . . . . . . Terminal Hacks 86 | . 6 2 1 13 7 1 1 . . . . 1 3 . . 4 2 . . 17 . 4 1 1 11 . . 3 . 3 5 Record 6 | . . 1 . . . . . . . . . . . . . . . . . 5 . . . . . . . . . . . Part Schematic 7 | . . . . 1 . . . . . . . . . . . . . . . 4 . . . . . . . 2 . . . Robot Schematic 1 | . . . . . 1 . . . . . . . . . . . . . . . . . . . . . . . . . . Robot Analysis 9 | . 1 . . 3 . . . . . . . . . . . . . . . 4 . . . . . . . . . . 1 Prototype ID Bank 23 | . 3 . . 1 2 . . . . . . . . . . 1 1 . . 4 . 1 . . 10 . . . . . . Open Door 16 | . . . . 2 . 1 1 . . . . 1 3 . . . . . . . . . 1 1 1 . . 1 . 3 1 Level Access Points 1 | . . . . . . . . . . . . . . . . 1 . . . . . . . . . . . . . . . Branch Access Points 2 | . . . 1 . 1 . . . . . . . . . . . . . . . . . . . . . . . . . . Repair Station Index 1 | . . . . 1 . . . . . . . . . . . . . . . . . . . . . . . . . . . Scanalyzer Index 1 | . . . . 1 . . . . . . . . . . . . . . . . . . . . . . . . . . . Unreport Threat 6 | . . . . 1 2 . . . . . . . . . . 1 . . . . . 2 . . . . . . . . . Locate Traps 7 | . 2 . . 2 1 . . . . . . . . . . 1 1 . . . . . . . . . . . . . . Reprogram Traps 1 | . . . . 1 . . . . . . . . . . . . . . . . . . . . . . . . . . . Registered Components 1 | . . . . . . . . . . . . . . . . . . . . . . . . . . . . . . . 1 Zone Layout 1 | . . . . . . . . . . . . . . . . . . . . . . 1 . . . . . . . . . Derelict Proto ID Bank 1 | . . 1 . . . . . . . . . . . . . . . . . . . . . . . . . . . . . Disengage Seal 2 | . . . . . . . . . . . . . . . . . . . . . . . . . . . . . . . 2 Fabricator Hacks 11 | . . . . . . . . . . 4 . . . . . . 5 . . . . . . . . . . 2 . . . Load Schematic 5 | . . . . . . . . . . 2 . . . . . . 2 . . . . . . . . . . 1 . . . Build 6 | . . . . . . . . . . 2 . . . . . . 3 . . . . . . . . . . 1 . . . Repair Station Hacks 20 | . 2 . 1 1 2 . . . . 1 . . . . . . 4 . . . . 9 . . . . . . . . . Scan Component 11 | . . . 1 1 1 . . . . 1 . . . . . . 2 . . . . 5 . . . . . . . . . Repair 7 | . . . . . 1 . . . . . . . . . . . 2 . . . . 4 . . . . . . . . . Refit 2 | . 2 . . . . . . . . . . . . . . . . . . . . . . . . . . . . . . Recycling Unit Hacks 4 | . . . . 1 1 . . . . 2 . . . . . . . . . . . . . . . . . . . . . Retrieve Components 4 | . . . . 1 1 . . . . 2 . . . . . . . . . . . . . . . . . . . . . Scanalyzer 10 | . . . . . 6 . . . . 2 . 2 . . . . . . . . . . . . . . . . . . . Insert Component 6 | . . . . . 4 . . . . 1 . 1 . . . . . . . . . . . . . . . . . . . Analyze 4 | . . . . . 2 . . . . 1 . 1 . . . . . . . . . . . . . . . . . . . Garrison Access Hacks 5 | . . . . 1 1 . . . . 2 . 1 . . . . . . . . . . . . . . . . . . . Seal Access 5 | . . . . 1 1 . . . . 2 . 1 . . . . . . . . . . . . . . . . . . . Unauthorized Hacks 18 | . 1 . 1 6 3 . . . . . . 1 . . . 1 . . . . . . . . . . . . . 1 4 Terminals 15 | . 1 . 1 5 2 . . . . . . 1 . . . 1 . . . . . . . . . . . . . . 4 Track 3 | . 1 . . 2 . . . . . . . . . . . . . . . . . . . . . . . . . . . Assimilate 1 | . . . . . 1 . . . . . . . . . . . . . . . . . . . . . . . . . . Botnet 4 | . . . 1 2 . . . . . . . . . . . . . . . . . . . . . . . . . . 1 Detonate 1 | . . . . . 1 . . . . . . . . . . . . . . . . . . . . . . . . . . Disrupt 5 | . . . . 1 . . . . . . . 1 . . . . . . . . . . . . . . . . . . 3 Sabotage 1 | . . . . . . . . . . . . . . . . 1 . . . . . . . . . . . . . . . Fabricators 2 | . . . . . 1 . . . . . . . . . . . . . . . . . . . . . . . . 1 . Liberate 1 | . . . . . 1 . . . . . . . . . . . . . . . . . . . . . . . . . . Haulers 1 | . . . . . . . . . . . . . . . . . . . . . . . . . . . . . . 1 . Repair Stations . | . . . . . . . . . . . . . . . . . . . . . . . . . . . . . . . . Recycling Units 1 | . . . . 1 . . . . . . . . . . . . . . . . . . . . . . . . . . . Reject 1 | . . . . 1 . . . . . . . . . . . . . . . . . . . . . . . . . . . Scanalyzers . | . . . . . . . . . . . . . . . . . . . . . . . . . . . . . . . . Garrison Access . | . . . . . . . . . . . . . . . . . . . . . . . . . . . . . . . . Data Cores Recovered 3 | . . . 1 . . . . . . . . . . . . 1 . . . . . . . . . . . . . . 1 Used . | . . . . . . . . . . . . . . . . . . . . . . . . . . . . . . . . Hacking Detections 78 | . 8 . 2 11 15 . . . . 6 . 4 4 1 . 3 7 . . . . 4 . . . . 1 4 . 3 5 Full Trace Events 11 | . 1 . 1 2 1 . . . . 1 . 1 2 . . . 1 . . . . . . . . . . 1 . . . Feedback Events 1 | . . . . . 1 . . . . . . . . . . . . . . . . . . . . . . . . . . Corruption 1 | . . . . . 1 . . . . . . . . . . . . . . . . . . . . . . . . . . Feedback Blocked . | . . . . . . . . . . . . . . . . . . . . . . . . . . . . . . . . Robot Schematics Acquired 4 | . . . . . 1 . . 3 . . . . . . . . . . . . . . . . . . . . . . . Robots Built 4 | . . . . . . . . . . 2 . . . . . . 2 . . . . . . . . . . . . . . Authchips 2 | . . . . . . . . . . 1 . . . . . . 1 . . . . . . . . . . . . . . Time 178 | . . . . . . . . . . 134 . . . . . . 44 . . . . . . . . . . . . . . Total Robot Build Rating 16 | . . . . . . . . . . 8 . . . . . . 8 . . . . . . . . . . . . . . Part Schematics Acquired 29 | . . . . 1 2 . . 16 . . . 1 . . . . . . . 4 . . . . . . . 5 . . . Parts Built 6 | . . . . . . . . . . 2 . . . . . . 3 . . . . . . . . . . 1 . . . Authchips 1 | . . . . . . . . . . 1 . . . . . . . . . . . . . . . . . . . . . Time 314 | . . . . . . . . . . 95 . . . . . . 124 . . . . . . . . . . 95 . . . Total Part Build Rating 32 | . . . . . . . . . . 10 . . . . . . 17 . . . . . . . . . . 5 . . . Parts Repaired 7 | . . . . . 1 . . . . . . . . . . . 2 . . . . 4 . . . . . . . . . Time 469 | . . . . . 19 . . . . . . . . . . . 90 . . . . 360 . . . . . . . . . Parts Recycled . | . . . . . . . . . . . . . . . . . . . . . . . . . . . . . . . . Recycled Matter . | . . . . . . . . . . . . . . . . . . . . . . . . . . . . . . . . Retrieved Matter . | . . . . . . . . . . . . . . . . . . . . . . . . . . . . . . . . Retrieved Components 24 | . . . . 1 10 . . . . 13 . . . . . . . . . . . . . . . . . . . . . Parts Scanalyzed 3 | . . . . . 2 . . . . 1 . . . . . . . . . . . . . . . . . . . . . Part Schematics Acquired 3 | . . . . . 2 . . . . . . 1 . . . . . . . . . . . . . . . . . . . Parts Damaged . | . . . . . . . . . . . . . . . . . . . . . . . . . . . . . . . . Bothacking | -11 -10 -10 -8 -8 -7 -7 -7 -7 -6 -6 -6 -6 -6 -6 -6 -6 -5 -5 -5 -5 -4 -4 -4 -4 -4 -3 -3 -3 -2 -1 -1 ------------ Run | Yrd Mat Sub Mat Sto Fac Low Low Zio Pro Fac Was Fac Ext Cet Arc Hub Fac Upp Upp Zhi Pro Fac Upp Upp War Pro Res Tes Res Acc Com Used RIF Installer . | . . . . . . . . . . . . . . . . . . . . . . . . . . . . . . . . Robots Hacked 16 | . . . . 1 . . . 2 . 2 . . 1 . . . . . . 3 . . . . 6 . . . . . 1 Non-combat 3 | . . . . 1 . . . . . 2 . . . . . . . . . . . . . . . . . . . . . Combat 12 | . . . . . . . . 2 . . . . 1 . . . . . . 3 . . . . 6 . . . . . . Robot Hacks Applied 15 | . . . . 1 . . . 2 . 2 . . 1 . . . . . . 3 . . . . 6 . . . . . . parse_system 12 | . . . . . . . . 2 . . . . 1 . . . . . . 3 . . . . 6 . . . . . . no_distress 2 | . . . . 1 . . . . . 1 . . . . . . . . . . . . . . . . . . . . . find_recycling 1 | . . . . . . . . . . 1 . . . . . . . . . . . . . . . . . . . . . Manual 1 | . . . . . . . . . . . . . . . . . . . . . . . . . . . . . . . 1 Relay Couplers Released 6 | . . . . . . . . . . . . . . . . . 4 . . . . . . . . . . . 2 . . Machine Destruction 2 | . . . . . . . . . . . . . . . . . . . . . . . . . . . . . 2 . . Programmers 4 | . . . . . . . . . . . . . . . . . 4 . . . . . . . . . . . . . . Fabnet Peak Effective % . | . . . . . . . . . . . . . . . . . . . . . . . . . . . . . . . . Robots Rewired 22 | . . . . . . . 2 . 2 . . . 18 . . . . . . . . . . . . . . . . . . Allies Hacked 2 | . . . . . . . . . 1 . . . . . . . 1 . . . . . . . . . . . . . . Hacks Repelled . | . . . . . . . . . . . . . . . . . . . . . . . . . . . . . . . . Allies | -11 -10 -10 -8 -8 -7 -7 -7 -7 -6 -6 -6 -6 -6 -6 -6 -6 -5 -5 -5 -5 -4 -4 -4 -4 -4 -3 -3 -3 -2 -1 -1 -------- Run | Yrd Mat Sub Mat Sto Fac Low Low Zio Pro Fac Was Fac Ext Cet Arc Hub Fac Upp Upp Zhi Pro Fac Upp Upp War Pro Res Tes Res Acc Com Total Allies 67 | . . . . 2 1 . 3 6 2 2 18 . 24 5 . . 3 . . . . 1 . . . . . . . . . Largest Group 18 | . . . . 2 1 . 3 9 9 3 18 16 18 18 10 8 3 . . . . 1 . . . . . . . . . Highest-Rated Group 714 | . . . . 62 10 . 145 308 308 170 638 588 675 714 714 546 120 . . . . 10 . . . . . . . . . Highest-Rated Ally 159 | . . . . 31 10 . 99 99 99 97 96 50 159 149 141 96 96 . . . . 10 . . . . . . . . . Total Orders 23 | . . . . . . . 2 . . 3 . 1 2 2 . 2 1 . . . . 2 . . . . . 3 2 1 2 STAY 2 | . . . . . . . 1 . . . . . . 1 . . . . . . . . . . . . . . . . . FOLLOW 2 | . . . . . . . 1 . . . . . . 1 . . . . . . . . . . . . . . . . . RETURN 19 | . . . . . . . . . . 3 . 1 2 . . 2 1 . . . . 2 . . . . . 3 2 1 2 Ally Attacks 827 | . . . . 9 . . 7 . 117 37 71 135 220 114 14 78 25 . . . . . . . . . . . . . . Total Damage 24890 | . . . . 145 . . 443 . 3332 1842 2949 3984 4389 2731 513 3676 886 . . . . . . . . . . . . . . Kills 166 | . . . . 1 . . 4 . 26 20 7 33 25 25 3 15 7 . . . . . . . . . . . . . . Allies Corrupted 2 | . . . . . . . . . . . . . . . . 1 1 . . . . . . . . . . . . . . Allies Melted 2 | . . . . . . . . . . . . . 1 . . . . . . . . . . . . . . . 1 . . Intel | -11 -10 -10 -8 -8 -7 -7 -7 -7 -6 -6 -6 -6 -6 -6 -6 -6 -5 -5 -5 -5 -4 -4 -4 -4 -4 -3 -3 -3 -2 -1 -1 ------- Run | Yrd Mat Sub Mat Sto Fac Low Low Zio Pro Fac Was Fac Ext Cet Arc Hub Fac Upp Upp Zhi Pro Fac Upp Upp War Pro Res Tes Res Acc Com Robot Analysis Total 9 | . 1 . . 3 . . . . . . . . . . . . . . . 4 . . . . . . . . . . 1 Derelict Logs Recovered 20 | . . 3 . . . 1 2 2 2 . . . . . . . . 3 1 . 2 . 2 2 . . . . . . . Drone Launches 20 | . . . . . . . . . . 3 . 1 2 . . 2 1 . . . . 2 . . . . . 3 2 2 2 Drone Recoveries 20 | . . . . . . . . . . 3 . 1 2 . . 2 1 . . . . 2 . . . . . 3 2 2 2 Decoded 0b10 Intel 69 | . . . . . . . . . . 55 13 1 . . . . . . . . . . . . . . . . . . . Items 69 | . . . . . . . . . . 55 13 1 . . . . . . . . . . . . . . . . . . . Exploration | -11 -10 -10 -8 -8 -7 -7 -7 -7 -6 -6 -6 -6 -6 -6 -6 -6 -5 -5 -5 -5 -4 -4 -4 -4 -4 -3 -3 -3 -2 -1 -1 ------------- Run | Yrd Mat Sub Mat Sto Fac Low Low Zio Pro Fac Was Fac Ext Cet Arc Hub Fac Upp Upp Zhi Pro Fac Upp Upp War Pro Res Tes Res Acc Com Turns Passed 41531 | 8 1557 4650 463 2049 2459 1102 4425 1445 2142 1369 567 1020 1734 338 1420 285 1313 1062 969 279 852 1195 1020 441 827 1087 222 1671 1173 1068 1319 Spaces Moved 23084 | 3 651 2291 207 784 1087 913 2446 1007 1334 866 329 563 835 161 127 132 637 766 716 200 566 674 730 316 566 694 267 950 815 653 798 Core 71 | . . . . . . . . . . . . . . . 71 . . . . . . . . . . . . . . . . Treads 5907 | 3 651 1547 84 784 396 . . . . 67 329 563 835 161 56 132 299 . . . . . . . . . . . . . . Legs 9495 | . . . . . 691 913 2446 170 . . . . . . . . 338 766 716 200 566 116 . . . . . 307 815 653 798 Wheels 3837 | . . 744 123 . . . . 837 1334 799 . . . . . . . . . . . . . . . . . . . . . Hover 3774 | . . . . . . . . . . . . . . . . . . . . . . 558 730 316 566 694 267 643 . . . Flight . | . . . . . . . . . . . . . . . . . . . . . . . . . . . . . . . . Fastest Speed 47 | 160 160 125 155 160 105 110 105 130 125 110 152 156 160 160 160 160 120 120 120 120 120 120 135 135 135 135 54 47 102 102 103 Average Speed 147 | 160 160 181 159 194 179 117 164 138 131 130 155 157 160 160 1104 160 139 120 120 120 120 134 135 135 135 135 54 96 106 102 113 Slowest Speed 1850 | 160 160 260 250 240 245 185 185 180 145 156 156 160 160 160 1850 160 260 120 120 120 120 260 135 135 138 135 54 190 120 103 190 Overloaded Moves 2 | . . . . . . . . . . . . . . . . . . . . . . . . . . . . 2 . . . Propulsion Burnouts . | . . . . . . . . . . . . . . . . . . . . . . . . . . . . . . . . Robots Hopped . | . . . . . . . . . . . . . . . . . . . . . . . . . . . . . . . . Cave-ins Triggered . | . . . . . . . . . . . . . . . . . . . . . . . . . . . . . . . . Teleports 1 | . . . . . . . . . . . . . . . . . . . . . . . . . . . . 1 . . . Exploration Rate (%) 58 | 2 83 80 19 92 33 83 99 84 89 30 97 19 87 69 75 30 17 75 81 62 70 18 80 39 86 70 11 86 31 22 44 Regions Visited 31 Branch Regions 20 Pre-discovered Areas 11 | . . 2 . 1 . . . 1 . . . . . . . . . . 1 3 1 . 1 1 . . . . . . . Known Exits Taken 24 | . . . 1 . 1 1 1 1 1 . . 1 1 1 1 1 1 1 1 1 1 1 1 1 1 1 1 1 1 . . Unknown Exits Taken 5 | 1 1 1 . 1 . . . . . . . . . . . . . . . . . . . . . . . . . 1 . Scrap Searched 34 | . . 9 . . . 3 4 3 2 . . . . . . . . 3 2 . 1 . 3 2 . 2 . . . . . Spaces Dug 269 | . . . . 12 9 . 18 . 11 2 . 9 1 . . . 2 61 2 . 28 12 22 2 5 2 6 33 6 15 11 Terrain Destroyed 1234 | . 43 45 27 43 202 6 50 . 11 28 . 24 18 2 . 161 2 61 2 . 116 28 66 2 5 92 6 40 8 15 131 Melee 63 | . . . . 1 . . . . 6 2 . . . . . . 1 1 2 . 3 8 . 2 5 1 6 6 2 10 7 Projectile 80 | . . . 1 3 . . . . 5 1 . 2 18 2 . 5 1 . . . 1 4 . . . 1 . 12 4 5 15 AOE 1091 | . 43 45 26 39 202 6 50 . . 25 . 22 . . . 156 . 60 . . 112 16 66 . . 90 . 22 2 . 109 Terrain Rammed . | . . . . . . . . . . . . . . . . . . . . . . . . . . . . . . . . Walls Destroyed . | . . . . . . . . . . . . . . . . . . . . . . . . . . . . . . . . Machines Disabled . | . . . . . . . . . . . . . . . . . . . . . . . . . . . . . . . . Actions | -11 -10 -10 -8 -8 -7 -7 -7 -7 -6 -6 -6 -6 -6 -6 -6 -6 -5 -5 -5 -5 -4 -4 -4 -4 -4 -3 -3 -3 -2 -1 -1 --------- Run | Yrd Mat Sub Mat Sto Fac Low Low Zio Pro Fac Was Fac Ext Cet Arc Hub Fac Upp Upp Zhi Pro Fac Upp Upp War Pro Res Tes Res Acc Com Total 28510 | 5 1123 2580 291 1136 1373 931 2802 1053 1599 1068 377 679 1159 228 140 172 980 889 813 231 683 883 749 323 608 822 330 1485 1022 927 1049 Wait 2719 | . 371 87 32 115 71 3 260 17 118 119 22 80 98 41 11 9 196 96 87 . 53 98 5 . 4 99 46 299 64 165 53 Move 23054 | 2 650 2290 206 783 1086 912 2445 1006 1333 866 328 562 834 160 126 131 636 765 715 199 565 673 729 315 565 693 266 949 814 652 798 Hop . | . . . . . . . . . . . . . . . . . . . . . . . . . . . . . . . . Pick Up 199 | . 16 27 5 17 14 1 8 6 2 8 1 1 . 4 . 1 16 2 . 3 7 7 . 1 4 1 3 12 14 8 10 Fast Attach 172 | . 2 8 4 11 10 . 2 2 4 6 7 2 1 4 . . 11 1 1 8 . 12 . 2 5 . 2 31 23 6 7 Attach 81 | . . 5 3 3 6 . 5 2 . 3 . 2 1 . . 1 10 1 . . 2 6 . . . 1 3 9 3 2 13 Detach 54 | . 3 4 2 3 2 . 2 2 1 . 1 2 1 . . . 2 . . . . 7 . . 1 . 2 6 5 1 7 Swap 371 | 3 8 17 7 23 25 8 4 11 21 19 1 9 9 . . 5 21 14 4 4 17 17 8 . 4 13 . 34 19 12 34 Drop 271 | . 11 17 5 29 12 . 10 4 7 11 8 7 3 8 . 1 14 2 1 10 4 13 . 2 9 1 1 30 27 7 17 Fire 708 | . 25 76 26 85 134 7 46 . 63 18 9 10 45 11 3 20 9 3 . . 13 9 4 . . 10 . 19 9 6 48 Melee 472 | . . 49 . 16 1 . . 3 14 4 . . 1 . . . 28 5 5 7 16 29 3 3 16 2 7 89 44 68 62 Ram 1 | . . . . . . . . . . 1 . . . . . . . . . . . . . . . . . . . . . Kick 11 | . . . . . 9 . . . . . . . . . . . 2 . . . . . . . . . . . . . . Crush 37 | . 9 . 1 8 2 . . . . . . 4 7 . . 4 2 . . . . . . . . . . . . . . Escape Stasis 10 | . . . . 2 . . . . . 8 . . . . . . . . . . . . . . . . . . . . . Rewire 215 | . . . . . . . 20 . 36 . . . 159 . . . . . . . . . . . . . . . . . . Trap 135 | . 28 . . 41 1 . . . . 5 . . . . . . 33 . . . 6 12 . . . 2 . 7 . . . Miscellaneous . | . . . . . . . . . . . . . . . . . . . . . . . . . . . . . . . . Route ------- -11/Scrapyard -10/Materials (discovered 5 exits: [*Mat x2] / [*Min x2] / *Sub) -10/Subcaves (discovered 2 exits: *Mat x2) -8/Materials -8/Storage -7/Factory (discovered 4 exits: *Fac x2 / *Low x2) -7/Lower Caves -7/Lower Caves (discovered 2 exits: *Fac / *Zio) -7/Zion -6/Proximity Caves -6/Factory (discovered 8 exits: Fac x4 / *Low x2 / Ext x2) -6/Waste -6/Factory (discovered 3 exits: *Fac x2 / *Ext) -6/Extension (discovered 3 exits: *Fac x2 / *Cet) -6/Cetus (discovered 2 exits: *Fac / *Arc) -6/Archives (discovered 3 exits: *Fac / *Hub x2) -6/Hub_04(d) (discovered 4 exits: *Fac x4) -5/Factory -5/Upper Caves -5/Upper Caves (discovered 2 exits: *Fac / *Zhi) -5/Zhirov -4/Proximity Caves -4/Factory (discovered 7 exits: *Res x4 / *Upp x2 / Arm) -4/Upper Caves -4/Upper Caves -4/Warlord -3/Proximity Caves -3/Research (discovered 3 exits: *Res x2 / *Tes) -3/Testing -2/Research (discovered 3 exits: *Acc x3) -1/Access -1/Command (discovered 2 exits: Sur x2) Free Derelict Territories History --------- Turn | Location | Event 6 | -11/Scrapyard | Discovered new exit (range 3) 9 | -11/Scrapyard | Entered Materials 9 | -10/Materials | Discovered new exit (range 15) 19 | -10/Materials | Central database locked down 305 | -10/Materials | Build established: Mutant 329 | -10/Materials | Discovered new exit (range 13) 540 | -10/Materials | Discovered new exit (range 13) 864 | -10/Materials | Discovered new exit (range 5) 1545 | -10/Materials | Discovered new exit (range 11) 1566 | -10/Materials | Entered Subcaves 1694 | -10/Subcaves | Discovered new exit (range 14) 1914 | -10/Subcaves | A swath of the cavern ceiling suddenly collapsed 2013 | -10/Subcaves | Shifting Twisted Machinery released Mak. Light Armor Plating 2013 | -10/Subcaves | Shifting Twisted Machinery released Battle Cannon 2358 | -10/Subcaves | Visited 4L-MR0's lab 2807 | -10/Subcaves | Learned location of Zion (-7) 2820 | -10/Subcaves | Visited Clippyterm 2939 | -10/Subcaves | Learned Materials stockpile data 2993 | -10/Subcaves | Disturbed a concealed Subdweller 3304 | -10/Subcaves | Core integrity fell below 50% 3429 | -10/Subcaves | Discovered new exit (range 6) 3656 | -10/Subcaves | Shifting Twisted Machinery released Mak. Hacking Suite 3826 | -10/Subcaves | Shifting Twisted Machinery released Battle Rifle 4386 | -10/Subcaves | Disturbed a concealed Subdweller 4479 | -10/Subcaves | Disturbed a concealed Subdweller 4782 | -10/Subcaves | Build established: Derelict-Mutant 5013 | -10/Subcaves | Found Arachnoskeleton 6216 | -10/Subcaves | Entered Materials 6216 | -8/Materials | Evolved 4 slots: Propulsion x1, Utility x3 6230 | -8/Materials | Identified exit to Storage 6638 | -8/Materials | Build established: Scavenger-Mutant 6679 | -8/Materials | Entered Storage 7680 | -8/Storage | Learned location of Armory (-4) 7716 | -8/Storage | Met a pair of Derelict thieves 7834 | -8/Storage | Destroyed 11 combat bots 7946 | -8/Storage | Found Prototype Protection 7946 | -8/Storage | Identified Lgt. Regenerative Plating 8351 | -8/Storage | Discovered new exit (range 16) 8728 | -8/Storage | Entered Factory 8728 | -7/Factory | Evolved 2 slots: Power x1, Utility x1 9057 | -7/Factory | Identified exit to Lower Caves 9518 | -7/Factory | Build established: Mutant 9894 | -7/Factory | Attached Arachnoskeleton, gained temporary slots: Propulsion x3 10328 | -7/Factory | First assault squad dispatched 10426 | -7/Factory | Discovered new exit (range 15) 10561 | -7/Factory | Garrison activated, responded to threat 10829 | -7/Factory | Repaired Imp. Light Armor Plating 11092 | -7/Factory | Discovered new exit (range 14) 11187 | -7/Factory | Entered Lower Caves 11491 | -7/Lower Caves | Spotted B-75 Beast 11682 | -7/Lower Caves | Encountered a Warlord checkpoint 11696 | -7/Lower Caves | Learned 4 Factory zone layouts 11828 | -7/Lower Caves | Discovered new exit (range 6) 12288 | -7/Lower Caves | Identified exit to Lower Caves 12289 | -7/Lower Caves | Entered another Lower Caves area 12414 | -7/Lower Caves | Encountered a Warlord checkpoint 12434 | -7/Lower Caves | Discovered new exit (range 10) 12478 | -7/Lower Caves | Identified exit to Factory 12743 | -7/Lower Caves | Learned 8 Factory zone layouts 13112 | -7/Lower Caves | Attracted the attention of an 0b10 outpost 13159 | -7/Lower Caves | Destroyed 10 combat bots 13288 | -7/Lower Caves | Found Prototype Device 13425 | -7/Lower Caves | Discovered new exit (range 7) 13432 | -7/Lower Caves | Identified exit to Zion 13700 | -7/Lower Caves | Learned Factory terminal intel 13883 | -7/Lower Caves | Identified Heart of Steel 16242 | -7/Lower Caves | Heart of Steel transformed into Warbot 16280 | -7/Lower Caves | Lost 3 parts (1p2n) 16714 | -7/Lower Caves | Entered Zion 16714 | -7/Zion | Accompanied by 3 allies (Warbot) 16735 | -7/Zion | Given A8's code to call for help 16812 | -7/Zion | Given the Hacking Drone Bay 16813 | -7/Zion | Found Prototype Device 16813 | -7/Zion | Identified Hacking Drone Bay 16843 | -7/Zion | Discovered new exit (range 10) 17057 | -7/Zion | Gained Derelict followers 17255 | -7/Zion | Learned location of Quarantine (-2) 17557 | -7/Zion | Found CR-A16's Pointy Stick 17793 | -7/Zion | Learned Factory stockpile data 18121 | -7/Zion | Gained Derelict followers 18154 | -7/Zion | Identified exit to Proximity Caves 18159 | -7/Zion | Entered Proximity Caves 18159 | -6/Proximity Caves | Accompanied by 9 allies (Warbot) 18222 | -6/Proximity Caves | Learned location of 1 exit from Factory 18515 | -6/Proximity Caves | Attracted the attention of an 0b10 base 18550 | -6/Proximity Caves | Lost 3 allies 18738 | -6/Proximity Caves | Attracted the attention of an 0b10 checkpoint 18779 | -6/Proximity Caves | Lost 3 allies 19692 | -6/Proximity Caves | Spotted B-75 Beast 19720 | -6/Proximity Caves | Revealed the true nature of CR-A16's Pointy Stick 19723 | -6/Proximity Caves | Destroyed B-75 Beast 20301 | -6/Proximity Caves | Entered Factory 20301 | -6/Factory | Accompanied by 3 allies (Warbot) 20301 | -6/Factory | Evolved 2 slots: Propulsion x2 20302 | -6/Factory | Identified exit to Lower Caves 20303 | -6/Factory | Identified exit to Extension 20306 | -6/Factory | Loaded intel: 28 terminal locations 20567 | -6/Factory | Build established: Scavenger-Mutant 21006 | -6/Factory | Identified exit to Factory 21076 | -6/Factory | Fabricated Spk. Medium Treads (x2) 21217 | -6/Factory | Fabricated P-60 Hacker? 21382 | -6/Factory | Build established: Derelict-Mutant 21670 | -6/Factory | Sucked down chute 21670 | -6/Factory | Entered Waste 21680 | -6/Waste | 1 allies followed down the chute 21710 | -6/Waste | Spotted C-40 Crusher 21717 | -6/Waste | Spotted C-40 Crusher 21727 | -6/Waste | Spotted C-40 Crusher 21728 | -6/Waste | Destroyed C-40 Crusher 21741 | -6/Waste | Spotted C-40 Crusher 21746 | -6/Waste | Spotted C-40 Crusher 21755 | -6/Waste | Crushed by Compactor (1 part destroyed, 1 dropped) 21758 | -6/Waste | Crushed by Compactor (1 part destroyed, 2 dropped) 21778 | -6/Waste | Spotted C-40 Crusher 21805 | -6/Waste | Warlord forces began an assault 21810 | -6/Waste | Allies destroyed C-40 Crusher 21812 | -6/Waste | Allies destroyed C-40 Crusher 21814 | -6/Waste | Allies destroyed C-40 Crusher 21815 | -6/Waste | Allies destroyed C-40 Crusher 21823 | -6/Waste | Allies destroyed C-40 Crusher 22060 | -6/Waste | Build established: Mutant 22208 | -6/Waste | Discovered new exit (range 13) 22233 | -6/Waste | Identified exit to Factory 22237 | -6/Waste | Entered Factory 22237 | -6/Factory | Accompanied by 16 allies 22587 | -6/Factory | Lost 5 allies 22601 | -6/Factory | Garrison activated, responded to threat 22635 | -6/Factory | Lost 3 allies 22937 | -6/Factory | First assault squad dispatched 22961 | -6/Factory | Garrison activated, responded to threat 22961 | -6/Factory | Discovered exit to Factory (range 13) 23023 | -6/Factory | Lost 3 allies 23191 | -6/Factory | Discovered exit to Factory (range 10) 23248 | -6/Factory | Discovered exit to Extension (range 6) 23257 | -6/Factory | Entered Extension 23257 | -6/Extension | Accompanied by 2 allies 23638 | -6/Extension | Identified exit to Cetus 23673 | -6/Extension | Rescued A7 23776 | -6/Extension | Rescued a captive Derelict 23909 | -6/Extension | Rescued a captive Derelict 23910 | -6/Extension | Rescued a captive Derelict 23959 | -6/Extension | Rescued a captive Derelict 24171 | -6/Extension | Build established: Commander-Mutant 24344 | -6/Extension | Spotted B-75 Beast 24363 | -6/Extension | Spotted B-75 Beast 24377 | -6/Extension | Destroyed B-75 Beast 24404 | -6/Extension | Lost 5 allies 24657 | -6/Extension | First assault squad dispatched 24894 | -6/Extension | Rescued a captive Derelict 24991 | -6/Extension | Entered Cetus 24991 | -6/Cetus | Accompanied by 18 allies (A7) 24996 | -6/Cetus | Acquired a Cetus Manufacturing Module code from A7 25011 | -6/Cetus | Spotted Cetus Guard 25011 | -6/Cetus | Spotted Cetus Guard 25013 | -6/Cetus | Spotted Cetus Guard 25014 | -6/Cetus | Spotted Cetus Guard 25027 | -6/Cetus | Allies destroyed Cetus Guard 25028 | -6/Cetus | Allies destroyed Cetus Guard 25031 | -6/Cetus | Allies destroyed Cetus Guard 25035 | -6/Cetus | Destroyed Cetus Guard 25064 | -6/Cetus | Lost 9 allies 25101 | -6/Cetus | Started Cetus Manufacturing Module 25126 | -6/Cetus | Manufactured an Enhanced Grunt 25130 | -6/Cetus | Escorted A7 to Cetus Mainframe 25150 | -6/Cetus | Discovered new exit (range 15) 25151 | -6/Cetus | Manufactured an Enhanced Grunt 25176 | -6/Cetus | Manufactured an Enhanced Grunt 25182 | -6/Cetus | Spotted Cetus Guard 25183 | -6/Cetus | Spotted Cetus Guard 25187 | -6/Cetus | Spotted Cetus Guard 25189 | -6/Cetus | Spotted Cetus Guard 25198 | -6/Cetus | Discovered exit to Factory (range 16) 25201 | -6/Cetus | Manufactured an Enhanced Grunt 25201 | -6/Cetus | Allies destroyed Cetus Guard 25202 | -6/Cetus | Allies destroyed Cetus Guard 25204 | -6/Cetus | Allies destroyed Cetus Guard 25208 | -6/Cetus | Allies destroyed Cetus Guard 25215 | -6/Cetus | Met Revision 17 25226 | -6/Cetus | Manufactured an Enhanced Grunt 25238 | -6/Cetus | Lost 4 allies 25294 | -6/Cetus | Identified exit to Archives 25329 | -6/Cetus | Entered Archives 25329 | -6/Archives | Accompanied by 10 allies (A7) 25334 | -6/Archives | Received a hacking code to weaken MAIN.C 25374 | -6/Archives | Discovered exit to Factory (range 15) 25390 | -6/Archives | Discovered new exit (range 16) 25404 | -6/Archives | Discovered new exit (range 16) 26577 | -6/Archives | Identified exit to Hub_04(d) 26749 | -6/Archives | Entered Hub_04(d) 26749 | -6/Hub_04(d) | Accompanied by 8 allies 26818 | -6/Hub_04(d) | Network Hub disabled 26830 | -6/Hub_04(d) | Spotted Lightning 26835 | -6/Hub_04(d) | Spotted Lightning 26837 | -6/Hub_04(d) | Garrison activated, responded to threat 26837 | -6/Hub_04(d) | Spotted Lightning 26846 | -6/Hub_04(d) | Allies destroyed Lightning 26847 | -6/Hub_04(d) | Destroyed Lightning 26852 | -6/Hub_04(d) | Allies destroyed Lightning 27008 | -6/Hub_04(d) | Lost 4 allies 27025 | -6/Hub_04(d) | Network Hub disabled 27030 | -6/Hub_04(d) | Spotted Lightning 27030 | -6/Hub_04(d) | Spotted Lightning 27030 | -6/Hub_04(d) | Spotted Lightning 27034 | -6/Hub_04(d) | System corruption reached 10% 27034 | -6/Hub_04(d) | Entered Factory 27034 | -5/Factory | Accompanied by 1 ally 27034 | -5/Factory | Evolved 2 slots: Propulsion x1, Utility x1 27055 | -5/Factory | Build established: Scavenger-Mutant 27140 | -5/Factory | Garrison activated, responded to threat 27619 | -5/Factory | Fabricated P-60 Hacker (x2) 27715 | -5/Factory | Hacker 6a assimilated hostile Y-64 Sentinel 27839 | -5/Factory | P-70 Sage assimilated allied Sentinel 6a 27852 | -5/Factory | Discovered new exit (range 9) 27880 | -5/Factory | Fabricated Cld. Proton Cannon? 27937 | -5/Factory | Lost 4 parts (2p1n1u) 27980 | -5/Factory | Repaired Centrium Medium Armor Plating 28083 | -5/Factory | System corruption reached 10% 28153 | -5/Factory | Identified exit to Upper Caves 28262 | -5/Factory | Repaired Centrium Medium Armor Plating? 28301 | -5/Factory | Fabricated Imp. System Restoration Module? 28347 | -5/Factory | Entered Upper Caves 28364 | -5/Upper Caves | Encountered a Warlord checkpoint 28390 | -5/Upper Caves | Learned Factory stockpile data 28448 | -5/Upper Caves | Learned Factory stockpile data 28621 | -5/Upper Caves | Lost 3 allies 28810 | -5/Upper Caves | Attracted the attention of an 0b10 checkpoint 28905 | -5/Upper Caves | Spotted B-75 Beast 29020 | -5/Upper Caves | Destroyed B-75 Beast 29031 | -5/Upper Caves | Learned Factory terminal intel 29183 | -5/Upper Caves | Discovered new exit (range 6) 29215 | -5/Upper Caves | Identified exit to Upper Caves 29409 | -5/Upper Caves | Entered another Upper Caves area 29447 | -5/Upper Caves | Discovered new exit (range 3) 29450 | -5/Upper Caves | Identified exit to Factory 29943 | -5/Upper Caves | Discovered new exit (range 9) 29951 | -5/Upper Caves | Identified exit to Zhirov 30378 | -5/Upper Caves | Entered Zhirov 30378 | -5/Zhirov | Discovered new exit (range 3) 30400 | -5/Zhirov | Met Zhirov 30445 | -5/Zhirov | Learned location of Testing (-3) 30445 | -5/Zhirov | Learned location of Command (-1) 30453 | -5/Zhirov | Zhirov requested help retrieving the SGEMP Prototype 30472 | -5/Zhirov | Found Alien Artifact 30472 | -5/Zhirov | Identified Integrated Dissipator 30472 | -5/Zhirov | Installed Integrated Dissipator, increased core heat dissipation (+20) 30576 | -5/Zhirov | Found Alien Artifact 30656 | -5/Zhirov | Identified exit to Proximity Caves 30657 | -5/Zhirov | Entered Proximity Caves 30753 | -4/Proximity Caves | Learned 4 Research zone layouts 31358 | -4/Proximity Caves | Discovered exit to Factory (range 6) 31509 | -4/Proximity Caves | Entered Factory 31509 | -4/Factory | Evolved 2 slots: Utility x1, Weapon x1 31511 | -4/Factory | Loaded intel: 26 terminal locations 31575 | -4/Factory | Spotted B-86 Titan 31654 | -4/Factory | Destroyed B-86 Titan 31769 | -4/Factory | Identified exit to Research 31858 | -4/Factory | Identified exit to Upper Caves 31858 | -4/Factory | Identified exit to Armory 32031 | -4/Factory | Repaired Centrium Medium Armor Plating 32140 | -4/Factory | Repaired Centrium Medium Armor Plating? 32271 | -4/Factory | Repaired Broken Shock Maul 32659 | -4/Factory | Repaired Tiamat Missile Launcher 32704 | -4/Factory | Entered Upper Caves 32957 | -4/Upper Caves | Build established: Mutant 33056 | -4/Upper Caves | Encountered a Warlord checkpoint 33253 | -4/Upper Caves | Spotted B-86 Titan 33381 | -4/Upper Caves | Build established: Trapper-Mutant 33583 | -4/Upper Caves | Identified exit to Upper Caves 33724 | -4/Upper Caves | Entered another Upper Caves area 33726 | -4/Upper Caves | Attracted the attention of an 0b10 checkpoint 33816 | -4/Upper Caves | Learned location of 2 exits from Research 33881 | -4/Upper Caves | Discovered new exit (range 11) 33916 | -4/Upper Caves | Identified exit to Warlord 34165 | -4/Upper Caves | Entered Warlord 34211 | -4/Warlord | System corruption cleaned by Quarantine Array 34688 | -4/Warlord | Met Warlord 34713 | -4/Warlord | Warlord's base attacked by MAIN.C 34743 | -4/Warlord | Found Prototype Device 34743 | -4/Warlord | Identified Exp. Phase Shifter 34761 | -4/Warlord | Found Prototype Processor 34761 | -4/Warlord | Identified Exp. Core Analyzer 34765 | -4/Warlord | Found Prototype Device 34765 | -4/Warlord | Identified System Purifier 34776 | -4/Warlord | Found Prototype Reactor 34954 | -4/Warlord | Opened side exit 34979 | -4/Warlord | Discovered new exit (range 11) 34989 | -4/Warlord | Identified exit to Proximity Caves 34992 | -4/Warlord | Entered Proximity Caves 35341 | -3/Proximity Caves | Spotted B-86 Titan 36026 | -3/Proximity Caves | Discovered exit to Research (range 6) 36079 | -3/Proximity Caves | Entered Research 36079 | -3/Research | Evolved 2 slots: Propulsion x2 36080 | -3/Research | Identified exit to Testing 36080 | -3/Research | Identified exit to Research 36301 | -3/Research | Entered Testing 36556 | -3/Testing | Found Prototype Protection 36556 | -3/Testing | Identified SHELL Armor 36559 | -3/Testing | Found Med. Regenerative Plating 36577 | -3/Testing | Fabricated Imp. Hacking Suite? 37084 | -3/Testing | Found Prototype Energy Cannon 37084 | -3/Testing | Identified Imp. Potential Cannon 37086 | -3/Testing | Identified Vortex Chain Reactor 37088 | -3/Testing | Found Prototype Energy Cannon 37088 | -3/Testing | Identified Potential Cannon 37258 | -3/Testing | Found Centrium Greatsword 37497 | -3/Testing | Spotted PD-88KLX0KPW2 37665 | -3/Testing | Identified Transdimensional Reconstructor 37665 | -3/Testing | Warped through subspace 37696 | -3/Testing | Lost 3 parts (1n1u1w) 37838 | -3/Testing | System corruption reached 10% 37925 | -3/Testing | Discovered exit to Research (range 6) 37972 | -3/Testing | Entered Research 37972 | -2/Research | Warlord forces began assault on 0b10 37972 | -2/Research | Evolved 2 slots: Power x1, Utility x1 37989 | -2/Research | Spotted B-90 Cyclops 37991 | -2/Research | Destroyed B-90 Cyclops 38082 | -2/Research | Research machine network offline 38327 | -2/Research | Discovered new exit (range 14) 38345 | -2/Research | Identified exit to Access 38454 | -2/Research | Met up with Warlord 38614 | -2/Research | Found Prototype Processor 38631 | -2/Research | Identified Exp. Armor Integrity Analyzer 38643 | -2/Research | Borebot progress halted 38695 | -2/Research | Spotted Striker 38704 | -2/Research | Spotted Executioner 38706 | -2/Research | Spotted Executioner 38726 | -2/Research | Lost 12 allies 38751 | -2/Research | Destroyed Executioner 38766 | -2/Research | Destroyed Executioner 38787 | -2/Research | Found Exp. Core Analyzer 38790 | -2/Research | Found Exp. Core Analyzer 38810 | -2/Research | Borebot progress halted 38830 | -2/Research | Spotted Striker 38831 | -2/Research | Spotted Striker 38831 | -2/Research | Spotted Striker 38831 | -2/Research | Spotted Striker 38863 | -2/Research | Borebot progress halted 38891 | -2/Research | Lost 7 allies 38891 | -2/Research | Discovered exit to Access (range 15) 38922 | -2/Research | Destroyed Striker 38961 | -2/Research | Found Prototype Device 38975 | -2/Research | Identified Thermal Barrier 39135 | -2/Research | Discovered exit to Access (range 5) 39145 | -2/Research | Entered Access 39145 | -1/Access | Evolved 2 slots: Utility x2 39273 | -1/Access | Found Molecular Scythe 39276 | -1/Access | Found Molecular Scythe 39279 | -1/Access | Found Molecular Scythe 39385 | -1/Access | Lost 3 allies 39522 | -1/Access | Build established: Scavenger-Gladiator 40165 | -1/Access | Discovered new exit (range 7) 40175 | -1/Access | Build established: Trapper-Gladiator 40193 | -1/Access | First assault squad dispatched 40213 | -1/Access | Entered Command 40463 | -1/Command | First assault squad dispatched 40485 | -1/Command | Identified exit to Surface 40523 | -1/Command | Spotted B-99 Colossus 40535 | -1/Command | Destroyed B-99 Colossus 40546 | -1/Command | Found Prototype Ballistic Gun 40814 | -1/Command | Build established: Scavenger-Gladiator 40970 | -1/Command | Lost 3 parts (2p1u) 40993 | -1/Command | Disengaged cave seal 40993 | -1/Command | Derelicts emerged from the dark tunnel 40993 | -1/Command | Welcomed Warlord to Command 41121 | -1/Command | Disengaged cave seal 41121 | -1/Command | Derelicts emerged from the dark tunnel 41181 | -1/Command | Spotted Striker 41188 | -1/Command | Spotted Alpha 7 41209 | -1/Command | Found Exp. Targeting Computer 41269 | -1/Command | Spotted Striker 41270 | -1/Command | Spotted Executioner 41271 | -1/Command | Spotted Executioner 41275 | -1/Command | Build established: Hacker-Gladiator 41278 | -1/Command | Spotted Alpha 7 41283 | -1/Command | Destroyed Executioner 41318 | -1/Command | Lost 14 allies 41350 | -1/Command | Spotted M Guard 41350 | -1/Command | Spotted M Guard 41350 | -1/Command | Spotted Combat Programmer 41351 | -1/Command | Spotted Combat Programmer 41353 | -1/Command | Warlord commented on Warlord statues 41354 | -1/Command | Destroyed M Guard 41371 | -1/Command | System corruption reached 10% 41372 | -1/Command | Combat Programmer assimilated allied AC-BY7(h) 41375 | -1/Command | Destroyed Combat Programmer 41395 | -1/Command | Destroyed M Guard 41395 | -1/Command | All MAIN.C guards destroyed 41406 | -1/Command | Lost 9 allies 41420 | -1/Command | Lost 4 parts (2n2u) 41451 | -1/Command | Met MAIN.C 41451 | -1/Command | Hacked MAIN.C using A7's code 41452 | -1/Command | 0b10 Conduit disabled 41458 | -1/Command | MAIN.C activated Command garrisons 41529 | -1/Command | Destroyed MAIN.C 41532 | *** | Establishing Free Derelict Territories! Last Messages --------------- 41515_ MAIN.C reaction time slowed by virus. 41516_ Acquired 14 matter. 41516_ MAIN.C reaction time slowed by virus. 41519_ Blast Slug penetrates Reinforced Barrier. 41519_ Blast Slug penetrates MAIN.C. 41521_ MAIN.C reaction time slowed by virus. 41522_ Blast Slug penetrates MAIN.C. 41522_ Blast Slug penetrates Reinforced Barrier. 41522_ Blast Slug penetrates MAIN.C. 41522_ Blast Slug penetrates Reinforced Barrier. 41525_ Blast Slug penetrates MAIN.C. 41529_ Blast Slug penetrates Reinforced Barrier. 41529_ Blast Slug penetrates MAIN.C. 41529_ MAIN.C: "I hope you know you're still going to DIE HERE WITH ME!" Heavy Barrier opened. 41529_ MAIN.C destroyed. ZY-L1N: Victory! Sure there's still lots to do, but without MAIN.C at the helm 0b10 doesn't stand a chance. We've got this... Map ----- +----------------------------------------------------+ | ?????????????????????????????????????????????????? | | ?????????????????????????????????????????????????? | | ?????????????????????????????????????????????????? | | ?????????????????????????????????????????????????? | | ?????????????????????????????????????????????????? | | ???????????????????????????????###############???? | | ??????????????????????????????" """" #???? | | ????????????????????????????? "" #???? | | ???????????????????????#???"" "" ##### | | ????????????????????????""""""""""" % + % | | ????????????????????????" " """ + | | ????????????????????????"" """""" % + | | ???????????????????????#"" """" ##### | | ???????????????????????# " """ % #???? | | ???????????????????????# " % #???? | | ???????????????????????# " ""#???? | | ???????????????????????#""""" """#???? | | ???????????????????????#"" % """"#???? | | ???????????????????????# """""#???? | | ???????????????????????# % % " " #???? | | ???????????????????##### % %% " " #???? | | ???????????????????? % W " " """" " ????? | | ????????????????????? % % " " """" #???? | | ?????????????????????? " " " ????? | | ????????!??????????????# """"" " ??????? | | ???????????????????????#%@ "" " """""???????? | | ???????????????????????#% $ """ " " "???????? | | ???????????????????????#################?????????? | | ?????????????????????????????????????????????????? | | ?????????????????????????????????????????????????? | | ?????????????????????????????????????????????????? | | ?????????????????????????????????????????????????? | | ?????????????????????????????????????????????????? | | ?????????????????????????????????????????????????? | | ?????????????????????????????????????????????????? | | ?????????????????????????????????????????????????? | | ?????????????????????????????????????????????????? | | ?????????????????????????????????????????????????? | | ?????????????????????????????????????????????????? | | ?????????????????????????????????????????????????? | | ?????????????????????????????????????????????????? | | ?????????????????????????????????????????????????? | | ?????????????????????????????????????????????????? | | ?????????????????????????????????????????????????? | | ?????????????????????????????????????????????????? | | ?????????????????????????????????????????????????? | | ?????????????????????????????????????????????????? | | ?????????????????????????????????????????????????? | | ?????????????????????????????????????????????????? | | ?????????????????????????????????????????????????? | +----------------------------------------------------+ Best States ------------- Heat Dissipation 103 Energy Generation 97 Energy Capacity 1340 Matter Stores 300 Matter Capacity 800 Sight Range 16 Robot Scan Range 18 Terrain Scan Density 10 Jamming Range 16 Power Amplification 40 Armor Coverage 1125 Resistance: TH 30 Core Shielding 20 Propulsion Shielding 90 Utility Shielding 66 Point Defense Rating 480 Phase Shifting 15 Evasion (%) 55 Targeting Accuracy 12 Melee Accuracy 16 Core Analysis 12 Armor Integrity Analysis 40 Recoil Reduction 5 Kinecelleration 30 Offensive Hacking 38 Authchip Count 3 Trap Extractor Capacity 8 Item Schematics ----------------- Triangulator | -8/Storage | Hacked Beamcaster | -7/Factory | Scanalyzed Prc. Assault Rifle | -7/Factory | Scanalyzed Lrn. Phase Cannon | -7/Zion | Archive 0b10 Decoder Chip [Generic] | -7/Zion | Archive Mak. Laser | -7/Zion | Archive Tesla Rifle | -7/Zion | Archive Mak. Sword | -7/Zion | Archive Imp. Hacking Suite | -7/Zion | Archive Mak. System Shield | -7/Zion | Archive Spk. Medium Treads | -7/Zion | Archive Med. Reactive Plating | -7/Zion | Archive Hvy. Machine Gun | -7/Zion | Archive Transmission Jammer | -7/Zion | Archive Imp. Recalibrator | -7/Zion | Archive Thermic Laser | -7/Zion | Archive Imp. Melee Analysis Suite | -7/Zion | Archive Imp. Deuterium Engine | -7/Zion | Archive Imp. System Restoration Module | -7/Zion | Archive Hrd. Heavy Armor Plating | -6/Factory | Scanalyzed Assault Drone Bay | -5/Zhirov | Free Exp. Heat Sink | -5/Zhirov | Free Exp. Optical Array | -5/Zhirov | Free Imp. Arc Thrower | -5/Zhirov | Free Exp. Field Recycling Unit | -3/Testing | Archive Coolant Network | -3/Testing | Archive Hdn. Centrium Wheel | -3/Testing | Archive Hvy. Regenerative Plating | -3/Testing | Hacked Med. Regenerative Plating | -3/Testing | Hacked Robot Schematics ------------------ P-60 Hacker | -7/Factory | Hacked Y-54 Guardian | -7/Zion | Archive M-28 Smith | -7/Zion | Archive A-02 Transporter | -7/Zion | Archive Fabricated ------------ Spk. Medium Treads | x2 | -6/Factory | Authchip P-60 Hacker | x2 | -6/Factory | Authchip P-60 Hacker | x2 | -5/Factory | Authchip Cld. Proton Cannon | x1 | -5/Factory | Preloaded Imp. System Restoration Module | x2 | -5/Factory Imp. Hacking Suite | x1 | -3/Testing Alien Tech Used ----------------- Integrated Dissipator Transdimensional Reconstructor Achievements -------------- None Challenges ------------ None Game ------ Seed SignalThiefRefractor Manual? 0 Play Time 04:03:56 Cumulative 1461.3 hours Start 2024.01.17 @ 20:22:34 End 2024.01.18 @ 00:45:41 Sessions 3 Manual Loads 0 Difficulty Rogue Special Mode None Game No. 1019 Rogue 1015 Adventurer 4 Explorer 0 Win Type 7 Total 178 Types 132/11/11/7/2/1/3/7/4 Lore% 95 Gallery% 98 Achievement% 98 Wizard Run 0 Options --------- ASCII 0 Keyboard 1 Movement Vi Keybinds 0 Fullscreen 0 Font 20/X11 Map View 76x50 Zoom Use 0% Tactical HUD 1 Map Filters NONE Filters NONE Steam 1 RUN: 0b2e5d8a-33d0-4e4e-8939-54d191979845